Workbook

Sheet 1. Info
AB1: Alectra Utilities Corporation - Enersource Hydro
AB2: Alectra Utilities Corporation - Horizon Utilities
AB3: Alectra Utilities Corporation - Hydro One Brampton
AB4: Alectra Utilities Corporation - PowerStream Inc.
AB5: Algoma Power Inc.
AB6: Atikokan Hydro Inc.
AB7: Attawapiskat Power Corp.
AB8: Bluewater Power Distribution Corporation
AB9: Brantford Power Inc.
AB10: Burlington Hydro Inc.
AB11: Canadian Niagara Power Inc.
AB12: Centre Wellington Hydro Ltd.
A13: Drop-down lists are shaded blue; Input cells are shaded green. | AB13: Chapleau Public Utilities Corporation
AB14: Clinton Power Corporation
C15: Utility Name | D15: Energy + Inc. | AB15: COLLUS PowerStream Corporation
AB16: Cooperative Hydro Embrun Inc.
C17: Service Territory | D17: Brant County | AB17: E.L.K. Energy Inc.
AB18: Energy + Inc.
C19: Assigned EB Number | D19: EB-2018-0028 | AB19: Entegrus Powerlines Inc.
AB20: ENWIN Utilities Ltd.
C21: Name and Title | D21: Sarah Hughes, Chief Financial Officer, Finance | AB21: Erie Thames Powerlines Corporation
AB22: Espanola Regional Hydro Distribution Corporation
C23: Phone Number | D23: 519-621-8405 ext 2638 | AB23: Essex Powerlines Corporation
AB24: Festival Hydro Inc.
C25: Email Address | D25: shughes@energyplus.ca | AB25: Fort Albany Power Corporation
AB26: Fort Frances Power Corporation
C27: Date | D27: 2018-04-27 | AB27: Greater Sudbury Hydro Inc.
AB28: Grimsby Power Inc.
C29: Last COS Re-based Year | D29: 2011 | AB29: Guelph Hydro Electric Systems Inc.
AB30: Halton Hills Hydro Inc.
AB31: Hearst Power Distribution Company Limited
AB32: Hydro 2000 Inc.
AB33: Hydro Hawkesbury Inc.
AB34: Hydro One Networks Inc.
AB35: Hydro One Networks Inc. - Haldimand County Hydro
AB36: Hydro One Networks Inc. - Norfolk Hydro
AB37: Hydro One Networks Inc. - Woodstock Hydro
AB38: Hydro One Remote Communities Inc.
AB39: Hydro Ottawa Limited
AB40: Innpower Corporation
AB41: Kashechewan Power Corporation
AB42: Kenora Hydro Electric Corporation Ltd.
AB43: Kingston Hydro Corporation
AB44: Kitchener-Wilmot Hydro Inc.
AB45: Lakefront Utilities Inc.
AB46: Lakeland Power Distribution Ltd.
AB47: London Hydro Inc.
AB48: Midland Power Utility Corporation
AB49: Milton Hydro Distribution inc.
AB50: Newmarket - Tay Power Distribution Ltd.
AB51: Niagara Peninsula Energy Inc.
AB52: Niagara-on-the-Lake Hydro Inc.
AB53: North Bay Hydro Distribution Limited
AB54: Northern Ontario Wires Inc.
AB55: Oakville Hydro Electricity Distribution Inc.
AB56: Orangeville Hydro Limited
AB57: Orillia Power Distribution Corporation
AB58: Oshawa PUC Networks Inc.
AB59: Ottawa River Power Corporation
AB60: Peterborough Distribution Incorporated
AB61: PUC Distribution Inc.
AB62: Renfrew Hydro Inc.
AB63: Rideau St. Lawrence Distribution Inc.
AB64: Sioux Lookout Hydro Inc.
AB65: St. Thomas Energy Inc.
AB66: Thunder Bay Hydro Electricity Distribution Inc.
AB67: Tillsonburg Hydro Inc.
AB68: Toronto Hydro-Electric System Limited
AB69: Veridian Connections Inc.
AB70: Wasaga Distribution Inc.
AB71: Waterloo North Hydro Inc.
AB72: Welland Hydro Electric System Corp.
AB73: Wellington North Power Inc.
AB74: West Coast Huron Energy Inc.
AB75: Westario Power Inc.
AB76: Whitby Hydro Electric Corporation

Sheet 2. Table of Contents
D20: 1. Info | I20: 6. Historical Wholesale
D22: 2. Table of Contents | I22: 7. Current Wholesale
D24: 3. Rate Classes | I24: 8. Forecast Wholesale
D26: 4. RRR Data | I26: 9. RTSR Rates to Forecast
D28: 5. UTRs and Sub-Transmission

Sheet 3. Rate Classes
C13: 1. Select the appropriate rate classes that appear on your most recent Board-Approved Tariff of Rates and Charges. 2. Enter the RTS Network and Connection Rate as it appears on the Tariff of Rates and Charges
C15: Rate Class | E15: Unit | G15: RTSR-Network | I15: RTSR-Connection
C17: Residential | E17: kWh | G17: 0.006142556924 | I17: 0.003104301837 | L17: =IF(OR(ISBLANK(C17), ISERROR(FIND("Choose", C17))=FALSE), 0, 1) -> 1 | M17: ="C" & ROW(C17) -> C17 | N17: =IF(OR(C17="General Service Intermediate Rate Class 1,000 To 4,999 kW (formerly General Service > 50 kW Customers)", C17="General Service Intermediate Rate Class 1,000 To 4,999 kW (formerly Large Use Customers)"), "x", "") ->  | W17: Choose Rate Class
C18: General Service Less Than 50 kW | E18: kWh | G18: 0.005639068799 | I18: 0.002703746779 | L18: 1 | M18: C18 | N18: =IF(OR(C18="General Service Intermediate Rate Class 1,000 To 4,999 kW (formerly General Service > 50 kW Customers)", C18="General Service Intermediate Rate Class 1,000 To 4,999 kW (formerly Large Use Customers)"), "x", "") ->  | W18: Residential
C19: General Service 50 to 1,000 kW - Non Interval Meters | E19: kW | G19: 2.246665443 | I19: 1.123657158 | L19: 1 | M19: C19 | W19: Residential Regular
C20: General Service 50 to 1,000 kW - Interval Meters | E20: kW | G20: 2.38321132 | I20: 1.241720736 | L20: 1 | M20: C20 | W20: Residential Urban
C21: General Service 1,000 to 4,999 kW | E21: kW | G21: 2.385930211 | I21: 1.231806984 | L21: 1 | M21: C21 | W21: Residential Urban Year-Round
C22: Street Lighting | E22: kW | G22: 1.6945 | I22: 0.8685037519 | L22: 1 | M22: C22 | W22: Residential Suburban
C23: Sentinel Lighting | E23: kW | G23: 1.656067148 | I23: 0.9078417384 | L23: 1 | M23: C23 | W23: Residential Suburban Seasonal
C24: Unmetered Scattered Load | E24: kWh | G24: 0.0056 | I24: 0.002703742323 | L24: 1 | M24: C24 | W24: Residential Suburban Year Round
C25: Embedded Distributor | E25: kW | G25: =G20 -> 2.38321132 | I25: =I20 -> 1.241720736 | L25: 1 | M25: C25 | W25: Residential - Time of Use
C26: Embedded Distributor | E26: kW | G26: =G20 -> 2.38321132 | I26: =I20 -> 1.241720736 | L26: 1 | M26: C26 | W26: Residential - Hensall
C27: Embedded Distributor | E27: kW | G27: =G20 -> 2.38321132 | I27: =I20 -> 1.241720736 | L27: 1 | M27: C27 | W27: Residential – High Density [R1]
C28: Choose Rate Class | L28: 0 | M28: C28 | W28: Residential – Normal Density [R2]
C29: Choose Rate Class | L29: 0 | M29: C29 | W29: Seasonal Residential – High Density [R3]
C30: Choose Rate Class | L30: 0 | M30: C30 | W30: Seasonal Residential – Normal Density [R4]
C31: Choose Rate Class | L31: 0 | M31: C31 | W31: Residential – Urban [UR]
C32: Choose Rate Class | L32: 0 | M32: C32 | W32: General Service Less Than 50 kW
C33: Choose Rate Class | L33: 0 | M33: C33 | W33: General Service Less Than 50 kW – Single Phase energy-billed [G1]
C34: Choose Rate Class | L34: 0 | M34: C34 | W34: General Service Less Than 50 kW – Three Phase energy-billed [G3]
C35: Choose Rate Class | L35: 0 | M35: C35 | W35: General Service Less Than 50 kW – Transmission Class energy-billed [T]
C36: Choose Rate Class | L36: 0 | M36: C36 | W36: General Service Less Than 50 kW – Urban energy-billed [UG]
C37: Choose Rate Class | L37: 0 | M37: C37 | W37: Westport Sewage Treatment Plant
C38: Choose Rate Class | L38: 0 | M38: C38 | W38: Small Commercial and USL - per meter
N39: =COUNTIF(N17:N38, "x") -> 0 | W39: Small Commercial and USL - per connection
W40: Farms – Single Phase energy-billed [F1]
W41: General Service 50 to 499 kW
W42: General Service 50 to 699 kW
W43: General Service 50 to 999 kW
W44: General Service 50 to 999 kW - Interval Metered
W45: General Service 50 to 1,000 kW
W46: General Service 50 to 1,000 kW - Interval Meters
W47: General Service 50 to 1,000 kW - Non Interval Meters
W48: General Service 50 to 1,499 kW
W49: General Service 50 to 1,499 kW - Interval Metered
W50: General Service 50 to 2,499 kW
W51: General Service 50 to 2,999 kW
W52: General Service 50 to 2,999 kW - Time of Use
W53: General Service 50 to 4,999 kW
W54: General Service 50 to 4,999 kW – Interval Metered
W55: General Service 50 to 4,999 kW - Time of Use
W56: General Service 50 to 4,999 kW (CoGeneration)
W57: General Service 50 to 4,999 kW (formerly Time of Use)
W58: General Service 500 to 4,999 kW
W59: General Service 700 to 4,999 kW
W60: General Service 1,000 to 2,999 kW
W61: General Service 1,000 to 4,999 kW
W62: General Service 1,000 to 4,999 kW - Interval Meters
W63: General Service 1,000 To 4,999 kW (co-generation)
W64: General Service Greater Than 1,000 kW
W65: General Service Intermediate Rate Class 1,000 To 4,999 kW (formerly Large Use Customers)
W66: General Service Intermediate Rate Class 1,000 To 4,999 kW (formerly General Service > 50 kW Customers)
W67: General Service 1,500 to 4,999 kW
W68: General Service Equal To Or Greater Than 1,500 kW
W69: General Service Equal To Or Greater Than 1,500 kW - Interval Metered
W70: General Service Intermediate 1,000 To 4,999 kW
W71: General Service 2,500 to 4,999 kW
W72: General Service 3,000 to 4,999 kW
W73: General Service 3,000 to 4,999 kW - Interval Metered
W74: General Service 3,000 to 4,999 kW - Intermediate Use
W75: General Service 3,000 to 4,999 kW - Time of Use
W76: Intermediate With Self Generation
W77: General Service - Commercial
W78: General Service - Institutional
W79: Farms – Three Phase energy-billed [F3]
W80: Large Use
W81: Large Use - Regular
W82: Large Use > 5000 kW
W83: Large Use - 3TS
W84: Large Use - Ford Annex
W85: Unmetered Scattered Load
W86: Sentinel Lighting
W87: Street Lighting
W88: Embedded Distributor
W89: Low Voltage Wheeling Charge Rate
W90: Stand-By
W91: Standby Power
W92: Standby Power – INTERIM APPROVAL
W93: Standby Power - APPROVED ON AN INTERIM BASIS
W94: Standby - General Service 50 - 1,000 kW
W95: Standby Power General Service 50 to 1,499 kW
W96: Standby - General Service 1,000 - 5,000 kW
W97: Standby Power General Service 1,500 to 4,999 kW
W98: Standby - Large Use
W99: Standby Power General Service Large Use
W100: Standby Distribution Service

Sheet 4. RRR Data
B15: Rate Class | C15: Rate Description | D15: Unit | E15: Rate | F15: Non-Loss Adjusted Metered kWh | G15: Non-Loss Adjusted Metered kW | H15: Applicable Loss Factor eg: (1.0325) | I15: Loss Adjusted Billed kWh
B17: Residential | C17: RTSR - Network | D17: kWh | E17: 0.006142556924 | F17: 72390462.49 | G17: 0 | H17: 1.287 | I17: =F17*H17 -> 93166525.23
B18: Residential | C18: RTSR - Connection | D18: kWh | E18: 0.003104301837 | F18: 72390462.49 | G18: 0 | H18: 1.287 | I18: =F18*H18 -> 93166525.23
B19: General Service Less Than 50 kW | C19: RTSR - Network | D19: kWh | E19: 0.005639068799 | F19: 41520429.87 | G19: 0 | H19: 1.287 | I19: =F19*H19 -> 53436793.24
B20: General Service Less Than 50 kW | C20: RTSR - Connection | D20: kWh | E20: 0.002703746779 | F20: 41520429.87 | G20: 0 | H20: 1.287 | I20: =F20*H20 -> 53436793.24
B21: General Service 50 to 1,000 kW - Non Interval Meters | C21: RTSR - Network | D21: kW | E21: 2.246665443 | F21: 22949246.14 | G21: 72426.91502
B22: General Service 50 to 1,000 kW - Non Interval Meters | C22: RTSR - Connection | D22: kW | E22: 1.123657158 | F22: 22949246.14 | G22: 72426.91502
B23: General Service 50 to 1,000 kW - Interval Meters | C23: RTSR - Network | D23: kW | E23: 2.38321132 | F23: 43645661.78 | G23: 137743.9859
B24: General Service 50 to 1,000 kW - Interval Meters | C24: RTSR - Connection | D24: kW | E24: 1.241720736 | F24: 43645661.78 | G24: 137743.9859
B25: General Service 1,000 to 4,999 kW | C25: RTSR - Network | D25: kW | E25: 2.385930211 | F25: 49503683.96 | G25: 116181.0895
B26: General Service 1,000 to 4,999 kW | C26: RTSR - Connection | D26: kW | E26: 1.231806984 | F26: 49503683.96 | G26: 116181.0895
B27: Street Lighting | C27: RTSR - Network | D27: kW | E27: 1.6945 | F27: 480844.107 | G27: 1482.651544 | H27: 1.0495
B28: Street Lighting | C28: RTSR - Connection | D28: kW | E28: 0.8685037519 | F28: 480844.107 | G28: 1482.651544 | H28: 1.0495
B29: Sentinel Lighting | C29: RTSR - Network | D29: kW | E29: 1.656067148 | F29: 126989 | G29: 342.92
B30: Sentinel Lighting | C30: RTSR - Connection | D30: kW | E30: 0.9078417384 | F30: 126989 | G30: 342.92
B31: Unmetered Scattered Load | C31: RTSR - Network | D31: kWh | E31: 0.0056 | F31: 214183.2382 | G31: 0 | H31: 1.287 | I31: =F31*H31 -> 275653.8276
B32: Unmetered Scattered Load | C32: RTSR - Connection | D32: kWh | E32: 0.002703742323 | F32: 214183.2382 | G32: 0 | H32: 1.287 | I32: =F32*H32 -> 275653.8276
B33: Embedded Distributor | C33: RTSR - Network | D33: kW | E33: 2.38321132 | F33: 347756.5929 | G33: 1074.96
B34: Embedded Distributor | C34: RTSR - Connection | D34: kW | E34: 1.241720736 | F34: 347756.5929 | G34: 1074.96
B35: Embedded Distributor | C35: RTSR - Network | D35: kW | E35: 2.38321132 | F35: 12191720.38 | G35: 29994.60525
B36: Embedded Distributor | C36: RTSR - Connection | D36: kW | E36: 1.241720736 | F36: 12191720.38 | G36: 29994.60525
B37: Embedded Distributor | C37: RTSR - Network | D37: kW | E37: 2.38321132 | F37: 43274121.53 | G37: 102972.9067 | H37: 1.287
B38: Embedded Distributor | C38: RTSR - Connection | D38: kW | E38: 1.241720736 | F38: 43274121.53 | G38: 102972.9067 | H38: 1.287

Sheet 5. UTRs and Sub-Transmission
B18: Uniform Transmission Rates | C18: Unit | E18: 2016 | H18: 2017 | J18: 2018
B20: Rate Description | E20: Rate | H20: Rate | J20: Rate
B22: Network Service Rate | C22: kW | E22: 3.66 | H22: 3.66 | J22: 3.61
B24: Line Connection Service Rate | C24: kW | E24: 0.87 | H24: 0.87 | J24: 0.95
B26: Transformation Connection Service Rate | C26: kW | E26: 2.02 | H26: 2.02 | J26: 2.34
B29: Hydro One Sub-Transmission Rates | C29: Unit | E29: 2016 | H29: 2017 | J29: 2018
E30: Jan 2016 | F30: Feb - Dec 2016
B34: Rate Description | E34: Rate | H34: Rate | J34: Rate
B36: Network Service Rate | C36: kW | E36: 3.4121 | F36: 3.3396 | H36: 3.1942 | J36: 3.1942
B38: Line Connection Service Rate | C38: kW | E38: 0.7879 | F38: 0.7791 | H38: 0.771 | J38: 0.771
B40: Transformation Connection Service Rate | C40: kW | E40: 1.8018 | F40: 1.7713 | H40: 1.7493 | J40: 1.7493
B42: Both Line and Transformation Connection Service Rate | C42: kW | E42: =E40+E38 -> 2.5897 | F42: =SUM(F40,F38) -> 2.5504 | H42: =SUM(H40,H38) -> 2.5203 | J42: =SUM(J40,J38) -> 2.5203
B45: If needed, add extra host here. (I) | C45: Unit | E45: 2016 | H45: 2017 | J45: 2018
B49: Rate Description | E49: Rate | H49: Rate | J49: Rate
B51: Network Service Rate | C51: kW | E51: 2.5 | H51: 2.44 | J51: 2.43
B53: Line Connection Service Rate | C53: kW
B55: Transformation Connection Service Rate | C55: kW | E55: 1.67 | H55: 1.74 | J55: 1.79
B57: Both Line and Transformation Connection Service Rate | C57: kW | E57: =SUM(E53,E55) -> 1.67 | H57: =SUM(H53,H55) -> 1.74 | J57: =J55+J53 -> 1.79
B60: If needed, add extra host here. (II) | C60: Unit | E60: Effective January 1, 2016 | H60: Effective January 1, 2017 | J60: Effective January 1, 2018
B64: Rate Description | E64: Rate | H64: Rate | J64: Rate
B66: Network Service Rate | C66: kW
B68: Line Connection Service Rate | C68: kW
B70: Transformation Connection Service Rate | C70: kW
B72: Both Line and Transformation Connection Service Rate | C72: kW | E72: =SUM(E68,E70) -> 0 | H72: =SUM(H68,H70) -> 0 | J72: =J70+J68 -> 0
E74: Historical 2016 | H74: Current 2017 | J74: Forecast 2018
B75: Low Voltage Switchgear Credit (if applicable, enter as a negative value) | C75: $

Sheet 6. Historical Wholesale
B21: IESO | D21: Network | H21: Line Connection | L21: Transformation Connection | P21: Total Line
B22: Month | D22: Units Billed | E22: Rate | F22: Amount | H22: Units Billed | I22: Rate | J22: Amount | L22: Units Billed | M22: Rate | N22: Amount | P22: Amount
B24: January | D24: 24777 | E24: =IF(D24<>0,F24/D24,0) -> 3.66 | F24: 90683.82 | H24: 29149 | I24: =IF(H24<>0,J24/H24,0) -> 0.87 | J24: 25359.63 | L24: 3407 | M24: =IF(L24<>0,N24/L24,0) -> 2.02 | N24: 6882.14 | P24: =J24+N24 -> 32241.77
B25: February | D25: 22328 | E25: =IF(D25<>0,F25/D25,0) -> 3.66 | F25: 81720.48 | H25: 23542 | I25: 0.87 | J25: 20481.54 | L25: 6274 | M25: 2.02 | N25: 12673.48 | P25: 33155.02
B26: March | D26: 31609 | E26: 3.66 | F26: 115688.94 | H26: 37153 | I26: 0.87 | J26: 32323.11 | L26: 19914 | M26: 2.02 | N26: 40226.28 | P26: 72549.39
B27: April | D27: 19952 | E27: 3.66 | F27: 73024.32 | H27: 22920 | I27: 0.87 | J27: 19940.4 | L27: 6150 | M27: 2.02 | N27: 12423 | P27: 32363.4
B28: May | D28: 22771 | E28: 3.66 | F28: 83341.86 | H28: 23321 | I28: 0.87 | J28: 20289.27 | L28: 6593 | M28: 2.02 | N28: 13317.86 | P28: 33607.13
B29: June | D29: 25946 | E29: 3.66 | F29: 94962.36 | H29: 27986 | I29: 0.87 | J29: 24347.82 | L29: 6791 | M29: 2.02 | N29: 13717.82 | P29: 38065.64
B30: July | D30: 26472 | E30: 3.66 | F30: 96887.52 | H30: 28214 | I30: 0.87 | J30: 24546.18 | L30: 7102 | M30: 2.02 | N30: 14346.04 | P30: 38892.22
B31: August | D31: 27795 | E31: 3.66 | F31: 101729.7 | H31: 28144 | I31: 0.87 | J31: 24485.28 | L31: 7155 | M31: 2.02 | N31: 14453.1 | P31: 38938.38
B32: September | D32: 27296 | E32: 3.66 | F32: 99903.36 | H32: 29477 | I32: 0.87 | J32: 25644.99 | L32: 7110 | M32: 2.02 | N32: 14362.2 | P32: 40007.19
B33: October | D33: 20623 | E33: 3.66 | F33: 75480.18 | H33: 23750 | I33: 0.87 | J33: 20662.5 | L33: 6340 | M33: 2.02 | N33: 12806.8 | P33: 33469.3
B34: November | D34: 23206.96023 | E34: 3.52 | F34: 81688.5 | H34: 42089.72727 | I34: 0.88 | J34: 37038.96 | L34: 24920.05634 | M34: 2.13 | N34: 53079.72 | P34: 90118.68
B35: December | D35: 44711.03977 | E35: 3.52 | F35: 157382.86 | H35: 34959.27273 | I35: 0.88 | J35: 30764.16 | L35: 15428.94366 | M35: 2.13 | N35: 32863.65 | P35: 63627.81
B37: Total | D37: =SUM(D24:D35) -> 317487 | E37: =IF(D37<>0,F37/D37,0) -> 3.630050679 | F37: =SUM(F24:F35) -> 1152493.9 | H37: =SUM(H24:H35) -> 350705 | I37: =IF(H37<>0,J37/H37,0) -> 0.8721969747 | J37: =SUM(J24:J35) -> 305883.84 | L37: =SUM(L24:L35) -> 117185 | M37: =IF(L37<>0,N37/L37,0) -> 2.057875069 | N37: =SUM(N24:N35) -> 241152.09 | P37: =SUM(P24:P35) -> 547035.93
B39: Hydro One | D39: Network | H39: Line Connection | L39: Transformation Connection | P39: Total Line
B41: Month | D41: Units Billed | E41: Rate | F41: Amount | H41: Units Billed | I41: Rate | J41: Amount | L41: Units Billed | M41: Rate | N41: Amount | P41: Amount
B43: January | D43: 7835.12 | E43: =IF(D43<>0,F43/D43,0) -> 3.3396 | F43: 26166.16675 | H43: 7963.29 | I43: =IF(H43<>0,J43/H43,0) -> 0.7665603026 | J43: 6104.341992 | L43: 7963.29 | M43: =IF(L43<>0,N43/L43,0) -> 1.742790738 | N43: 13878.34806 | P43: =J43+N43 -> 19982.69005
B44: February | D44: 7388.31 | E44: =IF(D44<>0,F44/D44,0) -> 3.1942 | F44: 23599.7398 | H44: 7881.44 | I44: =IF(H44<>0,J44/H44,0) -> 0.771 | J44: 6076.59024 | L44: 7881.44 | M44: 1.7493 | N44: 13787.00299 | P44: 19863.59323
B45: March | D45: 6732.89 | E45: 3.1942 | F45: 21506.19724 | H45: 6966.38 | I45: 0.771 | J45: 5371.07898 | L45: 6966.38 | M45: 1.7493 | N45: 12186.28853 | P45: 17557.36751
B46: April | D46: 6372.73 | E46: 3.1942 | F46: 20355.77417 | H46: 6760.43 | I46: 0.771 | J46: 5212.29153 | L46: 6760.43 | M46: 1.7493 | N46: 11826.0202 | P46: 17038.31173
B47: May | D47: 5615.91 | E47: 3.1942 | F47: 17938.33972 | H47: 5904.82 | I47: 0.771 | J47: 4552.61622 | L47: 5904.82 | M47: 1.7493 | N47: 10329.30163 | P47: 14881.91785
B48: June | D48: 6106.31 | E48: 3.1942 | F48: 19504.7754 | H48: 6246.18 | I48: 0.771 | J48: 4815.80478 | L48: 6246.18 | M48: 1.7493 | N48: 10926.44267 | P48: 15742.24745
B49: July | D49: 8728.67 | E49: 3.1942 | F49: 27881.11771 | H49: 8769.29 | I49: 0.771 | J49: 6761.12259 | L49: 8769.29 | M49: 1.7493 | N49: 15340.119 | P49: 22101.24159
B50: August | D50: 9229.7 | E50: 3.1942 | F50: 29481.50774 | H50: 9292.36 | I50: 0.771 | J50: 7164.40956 | L50: 9292.36 | M50: 1.7493 | N50: 16255.12535 | P50: 23419.53491
B51: September | D51: 9981.7 | E51: 3.1942 | F51: 31883.54614 | H51: 9981.7 | I51: 0.771 | J51: 7695.8907 | L51: 9981.7 | M51: 1.7493 | N51: 17460.98781 | P51: 25156.87851
B52: October | D52: 9916.97 | E52: 3.1942 | F52: 31676.78557 | H52: 10549.75 | I52: 0.771 | J52: 8133.85725 | L52: 10549.75 | M52: 1.7493 | N52: 18454.67767 | P52: 26588.53492
B53: November | D53: 5694.79 | E53: 3.1942 | F53: 18190.29822 | H53: 6079.37 | I53: 0.771 | J53: 4687.19427 | L53: 6079.37 | M53: 1.7493 | N53: 10634.64194 | P53: 15321.83621
B54: December | D54: 6388.18 | E54: 3.1942 | F54: 20405.12456 | H54: 6974 | I54: 0.771 | J54: 5376.954 | L54: 6974 | M54: 1.7493 | N54: 12199.6182 | P54: 17576.5722
B56: Total | D56: =SUM(D43:D54) -> 89991.28 | E56: =IF(D56<>0,F56/D56,0) -> 3.206859298 | F56: =SUM(F43:F54) -> 288589.373 | H56: =SUM(H43:H54) -> 93369.01 | I56: =IF(H56<>0,J56/H56,0) -> 0.7706213455 | J56: =SUM(J43:J54) -> 71952.15211 | L56: =SUM(L43:L54) -> 93369.01 | M56: =IF(L56<>0,N56/L56,0) -> 1.748744836 | N56: =SUM(N43:N54) -> 163278.5741 | P56: =SUM(P43:P54) -> 235230.7262
B58: Brantford Power Inc | D58: Network | H58: Line Connection | L58: Transformation Connection | P58: Total Line
B59: (if needed)
B60: Month | D60: Units Billed | E60: Rate | F60: Amount | H60: Units Billed | I60: Rate | J60: Amount | L60: Units Billed | M60: Rate | N60: Amount | P60: Amount
B62: January | D62: 11711.74872 | E62: =IF(D62<>0,F62/D62,0) -> 2.4377 | F62: 28549.72986 | I62: =IF(H62<>0,J62/H62,0) -> 0 | L62: 11721.33 | M62: =IF(L62<>0,N62/L62,0) -> 1.7351 | N62: 20337.67968 | P62: =J62+N62 -> 20337.67968
B63: February | D63: 10598.43 | E63: 2.4377 | F63: 25835.79281 | I63: 0 | L63: 10598.43 | M63: 2.4377 | N63: 25835.79281 | P63: 25835.79281
B64: March | D64: 11962.2818 | E64: 2.4377 | F64: 29160.45433 | I64: 0 | L64: 11962.29 | M64: 1.7351 | N64: 20755.76938 | P64: 20755.76938
B65: April | D65: 7712.43 | E65: 2.4377 | F65: 18800.59061 | I65: 0 | L65: 7712.43 | M65: 1.7351 | N65: 13381.83729 | P65: 13381.83729
B66: May | D66: 6879.364102 | E66: 2.4377 | F66: 16769.82587 | I66: 0 | L66: 6879.36 | M66: 1.7351 | N66: 11936.37754 | P66: 11936.37754
B67: June | D67: 7400.644053 | E67: 2.4377 | F67: 18040.55001 | I67: 0 | L67: 7401.284 | M67: 1.7351 | N67: 12841.96787 | P67: 12841.96787
B68: July | D68: 7306.22 | E68: 2.4377 | F68: 17810.37249 | I68: 0 | L68: 7306.22 | M68: 1.7351 | N68: 12677.02232 | P68: 12677.02232
B69: August | D69: 7122.584102 | E69: 2.4377 | F69: 17362.72327 | I69: 0 | L69: 7122.58 | M69: 1.7351 | N69: 12358.38856 | P69: 12358.38856
B70: September | D70: 7048.456153 | E70: 2.4377 | F70: 17182.02156 | I70: 0 | L70: 7048.45 | M70: 1.7351 | N70: 12229.7656 | P70: 12229.7656
B71: October | D71: 6092.39 | E71: 2.4377 | F71: 14851.4191 | I71: 0 | L71: 6092.39 | M71: 1.7351 | N71: 10570.90589 | P71: 10570.90589
B72: November | D72: 11578.53 | E72: 2.4377 | F72: 28224.98258 | I72: 0 | L72: 11578.53 | M72: 1.7351 | N72: 20089.9074 | P72: 20089.9074
B73: December | D73: 10350.8941 | E73: 2.4377 | F73: 25232.37455 | I73: 0 | L73: 10350.89 | M73: 1.7351 | N73: 17959.82924 | P73: 17959.82924
B75: Total | D75: =SUM(D62:D73) -> 105763.973 | E75: =IF(D75<>0,F75/D75,0) -> 2.4377 | F75: =SUM(F62:F73) -> 257820.8371 | H75: =SUM(H62:H73) -> 0 | I75: =IF(H75<>0,J75/H75,0) -> 0 | J75: =SUM(J62:J73) -> 0 | L75: =SUM(L62:L73) -> 105774.184 | M75: =IF(L75<>0,N75/L75,0) -> 1.805499569 | N75: =SUM(N62:N73) -> 190975.2436 | P75: =SUM(P62:P73) -> 190975.2436
B77: Add Extra Host Here (II) | D77: Network | H77: Line Connection | L77: Transformation Connection | P77: Total Line
B78: (if needed)
B79: Month | D79: Units Billed | E79: Rate | F79: Amount | H79: Units Billed | I79: Rate | J79: Amount | L79: Units Billed | M79: Rate | N79: Amount | P79: Amount
B81: January | E81: =IF(D81<>0,F81/D81,0) -> 0 | I81: =IF(H81<>0,J81/H81,0) -> 0 | M81: =IF(L81<>0,N81/L81,0) -> 0 | P81: =J81+N81 -> 0
B82: February | E82: 0 | I82: 0 | M82: 0 | P82: 0
B83: March | E83: 0 | I83: 0 | M83: 0 | P83: 0
B84: April | E84: 0 | I84: 0 | M84: 0 | P84: 0
B85: May | E85: 0 | I85: 0 | M85: 0 | P85: 0
B86: June | E86: 0 | I86: 0 | M86: 0 | P86: 0
B87: July | E87: 0 | I87: 0 | M87: 0 | P87: 0
B88: August | E88: 0 | I88: 0 | M88: 0 | P88: 0
B89: September | E89: 0 | I89: 0 | M89: 0 | P89: 0
B90: October | E90: 0 | I90: 0 | M90: 0 | P90: 0
B91: November | E91: 0 | I91: 0 | M91: 0 | P91: 0
B92: December | E92: 0 | I92: 0 | M92: 0 | P92: 0
B94: Total | D94: =SUM(D81:D92) -> 0 | E94: =IF(D94<>0,F94/D94,0) -> 0 | F94: =SUM(F81:F92) -> 0 | H94: =SUM(H81:H92) -> 0 | I94: =IF(H94<>0,J94/H94,0) -> 0 | J94: =SUM(J81:J92) -> 0 | L94: =SUM(L81:L92) -> 0 | M94: =IF(L94<>0,N94/L94,0) -> 0 | N94: =SUM(N81:N92) -> 0 | P94: =SUM(P81:P92) -> 0
B96: Total | D96: Network | H96: Line Connection | L96: Transformation Connection | P96: Total Line
B98: Month | D98: Units Billed | E98: Rate | F98: Amount | H98: Units Billed | I98: Rate | J98: Amount | L98: Units Billed | M98: Rate | N98: Amount | P98: Amount
B100: January | D100: =D24+D43+D62+D81 -> 44323.86872 | E100: =IF(D100<>0,F100/D100,0) -> 3.280393179 | F100: =F24+F43+F62+F81 -> 145399.7166 | H100: =H24+H43+H62+H81 -> 37112.29 | I100: =IF(H100<>0,J100/H100,0) -> 0.8478046489 | J100: =J24+J43+J62+J81 -> 31463.97199 | L100: =L24+L43+L62+L81 -> 23091.62 | M100: =IF(L100<>0,N100/L100,0) -> 1.779787115 | N100: =N24+N43+N62+N81 -> 41098.16774 | P100: =J100+N100 -> 72562.13973
B101: February | D101: =D25+D44+D63+D82 -> 40314.74 | E101: 3.253301711 | F101: =F25+F44+F63+F82 -> 131156.0126 | H101: =H25+H44+H63+H82 -> 31423.44 | I101: 0.8451694098 | J101: =J25+J44+J63+J82 -> 26558.13024 | L101: =L25+L44+L63+L82 -> 24753.87 | M101: 2.112650499 | N101: =N25+N44+N63+N82 -> 52296.2758 | P101: 78854.40604
B102: March | D102: 50304.1718 | E102: 3.306993946 | F102: 166355.5916 | H102: 44119.38 | I102: 0.8543680573 | J102: 37694.18898 | L102: 38842.67 | M102: 1.883710309 | N102: 73168.33791 | P102: 110862.5269
B103: April | D103: 34037.16 | E103: 3.295829757 | F103: 112180.6848 | H103: 29680.43 | I103: 0.8474503749 | J103: 25152.69153 | L103: 20622.86 | M103: 1.824715752 | N103: 37630.85749 | P103: 62783.54902
B104: May | D104: 35266.2741 | E104: 3.347391484 | F104: 118050.0256 | H104: 29225.82 | I104: 0.8499979203 | J104: 24841.88622 | L104: 19377.18 | M104: 1.836363143 | N104: 35583.53916 | P104: 60425.42538
B105: June | D105: 39452.95405 | E105: 3.358625193 | F105: 132507.6854 | H105: 34232.18 | I105: 0.8519359497 | J105: 29163.62478 | L105: 20438.464 | M105: 1.834102139 | N105: 37486.23054 | P105: 66649.85532
B106: July | D106: 42506.89 | E106: 3.354256456 | F106: 142579.0102 | H106: 36983.29 | I106: 0.8465256225 | J106: 31307.30259 | L106: 23177.51 | M106: 1.82777103 | N106: 42363.18132 | P106: 73670.48391
B107: August | D107: 44147.2841 | E107: 3.365414975 | F107: 148573.931 | H107: 37436.36 | I107: 0.8454264667 | J107: 31649.68956 | L107: 23569.94 | M107: 1.827183858 | N107: 43066.61391 | P107: 74716.30347
B108: September | D108: 44326.15615 | E108: 3.360745452 | F108: 148968.9277 | H108: 39458.7 | I108: 0.8449563898 | J108: 33340.8807 | L108: 24140.15 | M108: 1.824883168 | N108: 44052.95341 | P108: 77393.83411
B109: October | D109: 36632.36 | E109: 3.330617647 | F109: 122008.3847 | H109: 34299.75 | I109: 0.8395500623 | J109: 28796.35725 | L109: 22982.14 | M109: 1.82021272 | N109: 41832.38356 | P109: 70628.74081
B110: November | D110: 40480.28023 | E110: 3.164597184 | F110: 128103.7808 | H110: 48169.09727 | I110: 0.8662432271 | J110: 41726.15427 | L110: 42577.95634 | M110: 1.968254857 | N110: 83804.26934 | P110: 125530.4236
B111: December | D111: 61450.11387 | E111: 3.303823969 | F111: 203020.3591 | H111: 41933.27273 | I111: 0.8618720088 | J111: 36141.114 | L111: 32753.83366 | M111: 1.92414415 | N111: 63023.09744 | P111: 99164.21144
B113: Total | D113: =SUM(D100:D111) -> 513242.253 | E113: =IF(D113<>0,F113/D113,0) -> 3.310140777 | F113: =SUM(F100:F111) -> 1698904.11 | H113: =SUM(H100:H111) -> 444074.01 | I113: =IF(H113<>0,J113/H113,0) -> 0.8508401384 | J113: =SUM(J100:J111) -> 377835.9921 | L113: =SUM(L100:L111) -> 316328.194 | M113: =IF(L113<>0,N113/L113,0) -> 1.882241036 | N113: =SUM(N100:N111) -> 595405.9076 | P113: =SUM(P100:P111) -> 973241.8997
N115: Low Voltage Switchgear Credit (if applicable) | P115: ='5. UTRs and Sub-Transmission'!E75 -> 0
N117: Total including deduction for Low Voltage Switchgear Credit | P117: =P113+P115 -> 973241.8997

Sheet 7. Current Wholesale
B13: The purpose of this sheet is to calculate the expected billing when current 2017 Uniform Transmission Rates are applied against historical 2016 transmission units.
B20: IESO | D20: Network | H20: Line Connection | L20: Transformation Connection | P20: Total Line
B22: Month | D22: Units Billed | E22: Rate | F22: Amount | H22: Units Billed | I22: Rate | J22: Amount | L22: Units Billed | M22: Rate | N22: Amount | P22: Amount
B24: January | D24: ='6. Historical Wholesale'!D24 -> 24777 | E24: ='5. UTRs and Sub-Transmission'!H22 -> 3.66 | F24: =D24*E24 -> 90683.82 | H24: ='6. Historical Wholesale'!H24 -> 29149 | I24: ='5. UTRs and Sub-Transmission'!H24 -> 0.87 | J24: =H24*I24 -> 25359.63 | L24: ='6. Historical Wholesale'!L24 -> 3407 | M24: ='5. UTRs and Sub-Transmission'!H26 -> 2.02 | N24: =L24*M24 -> 6882.14 | P24: =J24+N24 -> 32241.77
B25: February | D25: ='6. Historical Wholesale'!D25 -> 22328 | E25: =E24 -> 3.66 | F25: =D25*E25 -> 81720.48 | H25: ='6. Historical Wholesale'!H25 -> 23542 | I25: =I24 -> 0.87 | J25: =H25*I25 -> 20481.54 | L25: ='6. Historical Wholesale'!L25 -> 6274 | M25: =M24 -> 2.02 | N25: =L25*M25 -> 12673.48 | P25: 33155.02
B26: March | D26: ='6. Historical Wholesale'!D26 -> 31609 | E26: =E25 -> 3.66 | F26: 115688.94 | H26: ='6. Historical Wholesale'!H26 -> 37153 | I26: =I25 -> 0.87 | J26: 32323.11 | L26: ='6. Historical Wholesale'!L26 -> 19914 | M26: =M25 -> 2.02 | N26: 40226.28 | P26: 72549.39
B27: April | D27: ='6. Historical Wholesale'!D27 -> 19952 | E27: 3.66 | F27: 73024.32 | H27: ='6. Historical Wholesale'!H27 -> 22920 | I27: 0.87 | J27: 19940.4 | L27: ='6. Historical Wholesale'!L27 -> 6150 | M27: 2.02 | N27: 12423 | P27: 32363.4
B28: May | D28: ='6. Historical Wholesale'!D28 -> 22771 | E28: 3.66 | F28: 83341.86 | H28: ='6. Historical Wholesale'!H28 -> 23321 | I28: 0.87 | J28: 20289.27 | L28: ='6. Historical Wholesale'!L28 -> 6593 | M28: 2.02 | N28: 13317.86 | P28: 33607.13
B29: June | D29: ='6. Historical Wholesale'!D29 -> 25946 | E29: 3.66 | F29: 94962.36 | H29: ='6. Historical Wholesale'!H29 -> 27986 | I29: 0.87 | J29: 24347.82 | L29: ='6. Historical Wholesale'!L29 -> 6791 | M29: 2.02 | N29: 13717.82 | P29: 38065.64
B30: July | D30: ='6. Historical Wholesale'!D30 -> 26472 | E30: 3.66 | F30: 96887.52 | H30: ='6. Historical Wholesale'!H30 -> 28214 | I30: 0.87 | J30: 24546.18 | L30: ='6. Historical Wholesale'!L30 -> 7102 | M30: 2.02 | N30: 14346.04 | P30: 38892.22
B31: August | D31: ='6. Historical Wholesale'!D31 -> 27795 | E31: 3.66 | F31: 101729.7 | H31: ='6. Historical Wholesale'!H31 -> 28144 | I31: 0.87 | J31: 24485.28 | L31: ='6. Historical Wholesale'!L31 -> 7155 | M31: 2.02 | N31: 14453.1 | P31: 38938.38
B32: September | D32: ='6. Historical Wholesale'!D32 -> 27296 | E32: 3.66 | F32: 99903.36 | H32: ='6. Historical Wholesale'!H32 -> 29477 | I32: 0.87 | J32: 25644.99 | L32: ='6. Historical Wholesale'!L32 -> 7110 | M32: 2.02 | N32: 14362.2 | P32: 40007.19
B33: October | D33: ='6. Historical Wholesale'!D33 -> 20623 | E33: 3.66 | F33: 75480.18 | H33: ='6. Historical Wholesale'!H33 -> 23750 | I33: 0.87 | J33: 20662.5 | L33: ='6. Historical Wholesale'!L33 -> 6340 | M33: 2.02 | N33: 12806.8 | P33: 33469.3
B34: November | D34: ='6. Historical Wholesale'!D34 -> 23206.96023 | E34: 3.66 | F34: 84937.47443 | H34: ='6. Historical Wholesale'!H34 -> 42089.72727 | I34: 0.87 | J34: 36618.06273 | L34: ='6. Historical Wholesale'!L34 -> 24920.05634 | M34: 2.02 | N34: 50338.5138 | P34: 86956.57653
B35: December | D35: ='6. Historical Wholesale'!D35 -> 44711.03977 | E35: 3.66 | F35: 163642.4056 | H35: ='6. Historical Wholesale'!H35 -> 34959.27273 | I35: 0.87 | J35: 30414.56727 | L35: ='6. Historical Wholesale'!L35 -> 15428.94366 | M35: 2.02 | N35: 31166.4662 | P35: 61581.03347
B37: Total | D37: =SUM(D24:D35) -> 317487 | E37: =IF(D37<>0,F37/D37,0) -> 3.66 | F37: =SUM(F24:F35) -> 1162002.42 | H37: =SUM(H24:H35) -> 350705 | I37: =IF(H37<>0,J37/H37,0) -> 0.87 | J37: =SUM(J24:J35) -> 305113.35 | L37: =SUM(L24:L35) -> 117185 | M37: =IF(L37<>0,N37/L37,0) -> 2.02 | N37: =SUM(N24:N35) -> 236713.7 | P37: =SUM(P24:P35) -> 541827.05
B39: Hydro One | D39: Network | H39: Line Connection | L39: Transformation Connection | P39: Total Line
B41: Month | D41: Units Billed | E41: Rate | F41: Amount | H41: Units Billed | I41: Rate | J41: Amount | L41: Units Billed | M41: Rate | N41: Amount | P41: Amount
B43: January | D43: ='6. Historical Wholesale'!D43 -> 7835.12 | E43: ='5. UTRs and Sub-Transmission'!H36 -> 3.1942 | F43: =D43*E43 -> 25026.9403 | H43: ='6. Historical Wholesale'!H43 -> 7963.29 | I43: ='5. UTRs and Sub-Transmission'!H38 -> 0.771 | J43: =H43*I43 -> 6139.69659 | L43: ='6. Historical Wholesale'!L43 -> 7963.29 | M43: ='5. UTRs and Sub-Transmission'!H40 -> 1.7493 | N43: =L43*M43 -> 13930.1832 | P43: =J43+N43 -> 20069.87979
B44: February | D44: ='6. Historical Wholesale'!D44 -> 7388.31 | E44: =E43 -> 3.1942 | F44: =D44*E44 -> 23599.7398 | H44: ='6. Historical Wholesale'!H44 -> 7881.44 | I44: =I43 -> 0.771 | J44: =H44*I44 -> 6076.59024 | L44: ='6. Historical Wholesale'!L44 -> 7881.44 | M44: =M43 -> 1.7493 | N44: =L44*M44 -> 13787.00299 | P44: 19863.59323
B45: March | D45: ='6. Historical Wholesale'!D45 -> 6732.89 | E45: 3.1942 | F45: 21506.19724 | H45: ='6. Historical Wholesale'!H45 -> 6966.38 | I45: 0.771 | J45: 5371.07898 | L45: ='6. Historical Wholesale'!L45 -> 6966.38 | M45: =M44 -> 1.7493 | N45: 12186.28853 | P45: 17557.36751
B46: April | D46: ='6. Historical Wholesale'!D46 -> 6372.73 | E46: 3.1942 | F46: 20355.77417 | H46: ='6. Historical Wholesale'!H46 -> 6760.43 | I46: 0.771 | J46: 5212.29153 | L46: ='6. Historical Wholesale'!L46 -> 6760.43 | M46: =M45 -> 1.7493 | N46: 11826.0202 | P46: 17038.31173
B47: May | D47: ='6. Historical Wholesale'!D47 -> 5615.91 | E47: 3.1942 | F47: 17938.33972 | H47: ='6. Historical Wholesale'!H47 -> 5904.82 | I47: 0.771 | J47: 4552.61622 | L47: ='6. Historical Wholesale'!L47 -> 5904.82 | M47: 1.7493 | N47: 10329.30163 | P47: 14881.91785
B48: June | D48: ='6. Historical Wholesale'!D48 -> 6106.31 | E48: 3.1942 | F48: 19504.7754 | H48: ='6. Historical Wholesale'!H48 -> 6246.18 | I48: 0.771 | J48: 4815.80478 | L48: ='6. Historical Wholesale'!L48 -> 6246.18 | M48: 1.7493 | N48: 10926.44267 | P48: 15742.24745
B49: July | D49: ='6. Historical Wholesale'!D49 -> 8728.67 | E49: 3.1942 | F49: 27881.11771 | H49: ='6. Historical Wholesale'!H49 -> 8769.29 | I49: 0.771 | J49: 6761.12259 | L49: ='6. Historical Wholesale'!L49 -> 8769.29 | M49: 1.7493 | N49: 15340.119 | P49: 22101.24159
B50: August | D50: ='6. Historical Wholesale'!D50 -> 9229.7 | E50: 3.1942 | F50: 29481.50774 | H50: ='6. Historical Wholesale'!H50 -> 9292.36 | I50: 0.771 | J50: 7164.40956 | L50: ='6. Historical Wholesale'!L50 -> 9292.36 | M50: 1.7493 | N50: 16255.12535 | P50: 23419.53491
B51: September | D51: ='6. Historical Wholesale'!D51 -> 9981.7 | E51: 3.1942 | F51: 31883.54614 | H51: ='6. Historical Wholesale'!H51 -> 9981.7 | I51: 0.771 | J51: 7695.8907 | L51: ='6. Historical Wholesale'!L51 -> 9981.7 | M51: 1.7493 | N51: 17460.98781 | P51: 25156.87851
B52: October | D52: ='6. Historical Wholesale'!D52 -> 9916.97 | E52: 3.1942 | F52: 31676.78557 | H52: ='6. Historical Wholesale'!H52 -> 10549.75 | I52: 0.771 | J52: 8133.85725 | L52: ='6. Historical Wholesale'!L52 -> 10549.75 | M52: 1.7493 | N52: 18454.67767 | P52: 26588.53492
B53: November | D53: ='6. Historical Wholesale'!D53 -> 5694.79 | E53: 3.1942 | F53: 18190.29822 | H53: ='6. Historical Wholesale'!H53 -> 6079.37 | I53: 0.771 | J53: 4687.19427 | L53: ='6. Historical Wholesale'!L53 -> 6079.37 | M53: 1.7493 | N53: 10634.64194 | P53: 15321.83621
B54: December | D54: ='6. Historical Wholesale'!D54 -> 6388.18 | E54: 3.1942 | F54: 20405.12456 | H54: ='6. Historical Wholesale'!H54 -> 6974 | I54: 0.771 | J54: 5376.954 | L54: ='6. Historical Wholesale'!L54 -> 6974 | M54: 1.7493 | N54: 12199.6182 | P54: 17576.5722
B56: Total | D56: =SUM(D43:D54) -> 89991.28 | E56: =IF(D56<>0,F56/D56,0) -> 3.1942 | F56: =SUM(F43:F54) -> 287450.1466 | H56: =SUM(H43:H54) -> 93369.01 | I56: =IF(H56<>0,J56/H56,0) -> 0.771 | J56: =SUM(J43:J54) -> 71987.50671 | L56: =SUM(L43:L54) -> 93369.01 | M56: =IF(L56<>0,N56/L56,0) -> 1.7493 | N56: =SUM(N43:N54) -> 163330.4092 | P56: =SUM(P43:P54) -> 235317.9159
B58: ='6. Historical Wholesale'!B58 -> Brantford Power Inc | D58: Network | H58: Line Connection | L58: Transformation Connection | P58: Total Line
B60: Month | D60: Units Billed | E60: Rate | F60: Amount | H60: Units Billed | I60: Rate | J60: Amount | L60: Units Billed | M60: Rate | N60: Amount | P60: Amount
B62: January | D62: ='6. Historical Wholesale'!D62 -> 11711.74872 | E62: ='5. UTRs and Sub-Transmission'!H51 -> 2.44 | F62: =D62*E62 -> 28576.66688 | H62: ='6. Historical Wholesale'!H62 -> 0 | I62: ='5. UTRs and Sub-Transmission'!H53 -> 0 | J62: =H62*I62 -> 0 | L62: ='6. Historical Wholesale'!L62 -> 11721.33 | M62: ='5. UTRs and Sub-Transmission'!H55 -> 1.74 | N62: =L62*M62 -> 20395.1142 | P62: =J62+N62 -> 20395.1142
B63: February | D63: ='6. Historical Wholesale'!D63 -> 10598.43 | E63: =E62 -> 2.44 | F63: =D63*E63 -> 25860.1692 | H63: ='6. Historical Wholesale'!H63 -> 0 | I63: =I62 -> 0 | J63: =H63*I63 -> 0 | L63: ='6. Historical Wholesale'!L63 -> 10598.43 | M63: =M62 -> 1.74 | N63: =L63*M63 -> 18441.2682 | P63: 18441.2682
B64: March | D64: ='6. Historical Wholesale'!D64 -> 11962.2818 | E64: =E63 -> 2.44 | F64: 29187.96758 | H64: ='6. Historical Wholesale'!H64 -> 0 | I64: =I63 -> 0 | J64: 0 | L64: ='6. Historical Wholesale'!L64 -> 11962.29 | M64: =M63 -> 1.74 | N64: 20814.3846 | P64: 20814.3846
B65: April | D65: ='6. Historical Wholesale'!D65 -> 7712.43 | E65: 2.44 | F65: 18818.3292 | H65: ='6. Historical Wholesale'!H65 -> 0 | I65: 0 | J65: 0 | L65: ='6. Historical Wholesale'!L65 -> 7712.43 | M65: =M64 -> 1.74 | N65: 13419.6282 | P65: 13419.6282
B66: May | D66: ='6. Historical Wholesale'!D66 -> 6879.364102 | E66: 2.44 | F66: 16785.64841 | H66: ='6. Historical Wholesale'!H66 -> 0 | I66: 0 | J66: 0 | L66: ='6. Historical Wholesale'!L66 -> 6879.36 | M66: 1.74 | N66: 11970.0864 | P66: 11970.0864
B67: June | D67: ='6. Historical Wholesale'!D67 -> 7400.644053 | E67: 2.44 | F67: 18057.57149 | H67: ='6. Historical Wholesale'!H67 -> 0 | I67: 0 | J67: 0 | L67: ='6. Historical Wholesale'!L67 -> 7401.284 | M67: 1.74 | N67: 12878.23416 | P67: 12878.23416
B68: July | D68: ='6. Historical Wholesale'!D68 -> 7306.22 | E68: 2.44 | F68: 17827.1768 | H68: ='6. Historical Wholesale'!H68 -> 0 | I68: 0 | J68: 0 | L68: ='6. Historical Wholesale'!L68 -> 7306.22 | M68: 1.74 | N68: 12712.8228 | P68: 12712.8228
B69: August | D69: ='6. Historical Wholesale'!D69 -> 7122.584102 | E69: 2.44 | F69: 17379.10521 | H69: ='6. Historical Wholesale'!H69 -> 0 | I69: 0 | J69: 0 | L69: ='6. Historical Wholesale'!L69 -> 7122.58 | M69: 1.74 | N69: 12393.2892 | P69: 12393.2892
B70: September | D70: ='6. Historical Wholesale'!D70 -> 7048.456153 | E70: 2.44 | F70: 17198.23301 | H70: ='6. Historical Wholesale'!H70 -> 0 | I70: 0 | J70: 0 | L70: ='6. Historical Wholesale'!L70 -> 7048.45 | M70: 1.74 | N70: 12264.303 | P70: 12264.303
B71: October | D71: ='6. Historical Wholesale'!D71 -> 6092.39 | E71: 2.44 | F71: 14865.4316 | H71: ='6. Historical Wholesale'!H71 -> 0 | I71: 0 | J71: 0 | L71: ='6. Historical Wholesale'!L71 -> 6092.39 | M71: 1.74 | N71: 10600.7586 | P71: 10600.7586
B72: November | D72: ='6. Historical Wholesale'!D72 -> 11578.53 | E72: 2.44 | F72: 28251.6132 | H72: ='6. Historical Wholesale'!H72 -> 0 | I72: 0 | J72: 0 | L72: ='6. Historical Wholesale'!L72 -> 11578.53 | M72: 1.74 | N72: 20146.6422 | P72: 20146.6422
B73: December | D73: ='6. Historical Wholesale'!D73 -> 10350.8941 | E73: 2.44 | F73: 25256.18161 | H73: ='6. Historical Wholesale'!H73 -> 0 | I73: 0 | J73: 0 | L73: ='6. Historical Wholesale'!L73 -> 10350.89 | M73: 1.74 | N73: 18010.5486 | P73: 18010.5486
B75: Total | D75: =SUM(D62:D73) -> 105763.973 | E75: =IF(D75<>0,F75/D75,0) -> 2.44 | F75: =SUM(F62:F73) -> 258064.0942 | H75: =SUM(H62:H73) -> 0 | I75: =IF(H75<>0,J75/H75,0) -> 0 | J75: =SUM(J62:J73) -> 0 | L75: =SUM(L62:L73) -> 105774.184 | M75: =IF(L75<>0,N75/L75,0) -> 1.74 | N75: =SUM(N62:N73) -> 184047.0802 | P75: =SUM(P62:P73) -> 184047.0802
B77: ='6. Historical Wholesale'!B77 -> Add Extra Host Here (II) | D77: Network | H77: Line Connection | L77: Transformation Connection | P77: Total Line
B79: Month | D79: Units Billed | E79: Rate | F79: Amount | H79: Units Billed | I79: Rate | J79: Amount | L79: Units Billed | M79: Rate | N79: Amount | P79: Amount
B81: January | D81: ='6. Historical Wholesale'!D81 -> 0 | E81: ='5. UTRs and Sub-Transmission'!H66 -> 0 | F81: =D81*E81 -> 0 | H81: ='6. Historical Wholesale'!H81 -> 0 | I81: ='5. UTRs and Sub-Transmission'!H68 -> 0 | J81: =H81*I81 -> 0 | L81: ='6. Historical Wholesale'!L81 -> 0 | M81: ='5. UTRs and Sub-Transmission'!H70 -> 0 | N81: =L81*M81 -> 0 | P81: =J81+N81 -> 0
B82: February | D82: ='6. Historical Wholesale'!D82 -> 0 | E82: =E81 -> 0 | F82: =D82*E82 -> 0 | H82: ='6. Historical Wholesale'!H82 -> 0 | I82: =I81 -> 0 | J82: =H82*I82 -> 0 | L82: ='6. Historical Wholesale'!L82 -> 0 | M82: =M81 -> 0 | N82: =L82*M82 -> 0 | P82: 0
B83: March | D83: ='6. Historical Wholesale'!D83 -> 0 | E83: =E82 -> 0 | F83: 0 | H83: ='6. Historical Wholesale'!H83 -> 0 | I83: =I82 -> 0 | J83: 0 | L83: ='6. Historical Wholesale'!L83 -> 0 | M83: =M82 -> 0 | N83: 0 | P83: 0
B84: April | D84: ='6. Historical Wholesale'!D84 -> 0 | E84: 0 | F84: 0 | H84: ='6. Historical Wholesale'!H84 -> 0 | I84: 0 | J84: 0 | L84: ='6. Historical Wholesale'!L84 -> 0 | M84: =M83 -> 0 | N84: 0 | P84: 0
B85: May | D85: ='6. Historical Wholesale'!D85 -> 0 | E85: 0 | F85: 0 | H85: ='6. Historical Wholesale'!H85 -> 0 | I85: 0 | J85: 0 | L85: ='6. Historical Wholesale'!L85 -> 0 | M85: 0 | N85: 0 | P85: 0
B86: June | D86: ='6. Historical Wholesale'!D86 -> 0 | E86: 0 | F86: 0 | H86: ='6. Historical Wholesale'!H86 -> 0 | I86: 0 | J86: 0 | L86: ='6. Historical Wholesale'!L86 -> 0 | M86: 0 | N86: 0 | P86: 0
B87: July | D87: ='6. Historical Wholesale'!D87 -> 0 | E87: 0 | F87: 0 | H87: ='6. Historical Wholesale'!H87 -> 0 | I87: 0 | J87: 0 | L87: ='6. Historical Wholesale'!L87 -> 0 | M87: 0 | N87: 0 | P87: 0
B88: August | D88: ='6. Historical Wholesale'!D88 -> 0 | E88: 0 | F88: 0 | H88: ='6. Historical Wholesale'!H88 -> 0 | I88: 0 | J88: 0 | L88: ='6. Historical Wholesale'!L88 -> 0 | M88: 0 | N88: 0 | P88: 0
B89: September | D89: ='6. Historical Wholesale'!D89 -> 0 | E89: 0 | F89: 0 | H89: ='6. Historical Wholesale'!H89 -> 0 | I89: 0 | J89: 0 | L89: ='6. Historical Wholesale'!L89 -> 0 | M89: 0 | N89: 0 | P89: 0
B90: October | D90: ='6. Historical Wholesale'!D90 -> 0 | E90: 0 | F90: 0 | H90: ='6. Historical Wholesale'!H90 -> 0 | I90: 0 | J90: 0 | L90: ='6. Historical Wholesale'!L90 -> 0 | M90: 0 | N90: 0 | P90: 0
B91: November | D91: ='6. Historical Wholesale'!D91 -> 0 | E91: 0 | F91: 0 | H91: ='6. Historical Wholesale'!H91 -> 0 | I91: 0 | J91: 0 | L91: ='6. Historical Wholesale'!L91 -> 0 | M91: 0 | N91: 0 | P91: 0
B92: December | D92: ='6. Historical Wholesale'!D92 -> 0 | E92: 0 | F92: 0 | H92: ='6. Historical Wholesale'!H92 -> 0 | I92: 0 | J92: 0 | L92: ='6. Historical Wholesale'!L92 -> 0 | M92: 0 | N92: 0 | P92: 0
B94: Total | D94: =SUM(D81:D92) -> 0 | E94: =IF(D94<>0,F94/D94,0) -> 0 | F94: =SUM(F81:F92) -> 0 | H94: =SUM(H81:H92) -> 0 | I94: =IF(H94<>0,J94/H94,0) -> 0 | J94: =SUM(J81:J92) -> 0 | L94: =SUM(L81:L92) -> 0 | M94: =IF(L94<>0,N94/L94,0) -> 0 | N94: =SUM(N81:N92) -> 0 | P94: =SUM(P81:P92) -> 0
B96: Total | D96: Network | H96: Line Connection | L96: Transformation Connection | P96: Total Line
B98: Month | D98: Units Billed | E98: Rate | F98: Amount | H98: Units Billed | I98: Rate | J98: Amount | L98: Units Billed | M98: Rate | N98: Amount | P98: Amount
B100: January | D100: =D24+D43+D62+D81 -> 44323.86872 | E100: =IF(D100<>0,F100/D100,0) -> 3.255298586 | F100: =F24+F43+F62+F81 -> 144287.4272 | H100: =H24+H43+H62+H81 -> 37112.29 | I100: =IF(H100<>0,J100/H100,0) -> 0.8487572874 | J100: =J24+J43+J62+J81 -> 31499.32659 | L100: =L24+L43+L62+L81 -> 23091.62 | M100: =IF(L100<>0,N100/L100,0) -> 1.78451912 | N100: =N24+N43+N62+N81 -> 41207.4374 | P100: =J100+N100 -> 72706.76399
B101: February | D101: =D25+D44+D63+D82 -> 40314.74 | E101: 3.253906363 | F101: =F25+F44+F63+F82 -> 131180.389 | H101: =H25+H44+H63+H82 -> 31423.44 | I101: 0.8451694098 | J101: =J25+J44+J63+J82 -> 26558.13024 | L101: =L25+L44+L63+L82 -> 24753.87 | M101: 1.813928537 | N101: =N25+N44+N63+N82 -> 44901.75119 | P101: 71459.88143
B102: March | D102: 50304.1718 | E102: 3.307540883 | F102: 166383.1048 | H102: 44119.38 | I102: 0.8543680573 | J102: 37694.18898 | L102: 38842.67 | M102: 1.885219351 | N102: 73226.95313 | P102: 110921.1421
B103: April | D103: 34037.16 | E103: 3.296350911 | F103: 112198.4234 | H103: 29680.43 | I103: 0.8474503749 | J103: 25152.69153 | L103: 20622.86 | M103: 1.826548228 | N103: 37668.6484 | P103: 62821.33993
B104: May | D104: 35266.2741 | E104: 3.347840143 | F104: 118065.8481 | H104: 29225.82 | I104: 0.8499979203 | J104: 24841.88622 | L104: 19377.18 | M104: 1.838102759 | N104: 35617.24803 | P104: 60459.13425
B105: June | D105: 39452.95405 | E105: 3.35905663 | F105: 132524.7069 | H105: 34232.18 | I105: 0.8519359497 | J105: 29163.62478 | L105: 20438.464 | M105: 1.835876553 | N105: 37522.49683 | P105: 66686.12161
B106: July | D106: 42506.89 | E106: 3.354651787 | F106: 142595.8145 | H106: 36983.29 | I106: 0.8465256225 | J106: 31307.30259 | L106: 23177.51 | M106: 1.829315651 | N106: 42398.9818 | P106: 73706.28439
B107: August | D107: 44147.2841 | E107: 3.365786049 | F107: 148590.3129 | H107: 37436.36 | I107: 0.8454264667 | J107: 31649.68956 | L107: 23569.94 | M107: 1.828664585 | N107: 43101.51455 | P107: 74751.20411
B108: September | D108: 44326.15615 | E108: 3.361111183 | F108: 148985.1392 | H108: 39458.7 | I108: 0.8449563898 | J108: 33340.8807 | L108: 24140.15 | M108: 1.826313872 | N108: 44087.49081 | P108: 77428.37151
B109: October | D109: 36632.36 | E109: 3.331000164 | F109: 122022.3972 | H109: 34299.75 | I109: 0.8395500623 | J109: 28796.35725 | L109: 22982.14 | M109: 1.821511673 | N109: 41862.23628 | P109: 70658.59353
B110: November | D110: 40480.28023 | E110: 3.245515721 | F110: 131379.3858 | H110: 48169.09727 | I110: 0.8575053164 | J110: 41305.257 | L110: 42577.95634 | M110: 1.905206471 | N110: 81119.79794 | P110: 122425.0549
B111: December | D111: 61450.11387 | E111: 3.406075246 | F111: 209303.7117 | H111: 41933.27273 | I111: 0.8535351272 | J111: 35791.52127 | L111: 32753.83366 | M111: 1.873876311 | N111: 61376.633 | P111: 97168.15427
B113: Total | D113: =SUM(D100:D111) -> 513242.253 | E113: =IF(D113<>0,F113/D113,0) -> 3.32692145 | F113: =SUM(F100:F111) -> 1707516.661 | H113: =SUM(H100:H111) -> 444074.01 | I113: =IF(H113<>0,J113/H113,0) -> 0.8491847039 | J113: =SUM(J100:J111) -> 377100.8567 | L113: =SUM(L100:L111) -> 316328.194 | M113: =IF(L113<>0,N113/L113,0) -> 1.846472115 | N113: =SUM(N100:N111) -> 584091.1894 | P113: =SUM(P100:P111) -> 961192.0461
N115: Low Voltage Switchgear Credit (if applicable) | P115: ='5. UTRs and Sub-Transmission'!H75 -> 0
N117: Total including deduction for Low Voltage Switchgear Credit | P117: =P113+P115 -> 961192.0461

Sheet 8. Forecast Wholesale
B13: The purpose of this sheet is to calculate the expected billing when forecasted 2018 Uniform Transmission Rates are applied against historical 2016 transmission units.
B20: IESO | D20: Network | H20: Line Connection | L20: Transformation Connection | P20: Total Line
B22: Month | D22: Units Billed | E22: Rate | F22: Amount | H22: Units Billed | I22: Rate | J22: Amount | L22: Units Billed | M22: Rate | N22: Amount | P22: Amount
B24: January | D24: ='6. Historical Wholesale'!D24 -> 24777 | E24: ='5. UTRs and Sub-Transmission'!J22 -> 3.61 | F24: =D24*E24 -> 89444.97 | H24: ='6. Historical Wholesale'!H24 -> 29149 | I24: ='5. UTRs and Sub-Transmission'!J24 -> 0.95 | J24: =H24*I24 -> 27691.55 | L24: ='6. Historical Wholesale'!L24 -> 3407 | M24: ='5. UTRs and Sub-Transmission'!J26 -> 2.34 | N24: =L24*M24 -> 7972.38 | P24: =J24+N24 -> 35663.93
B25: February | D25: ='6. Historical Wholesale'!D25 -> 22328 | E25: =E24 -> 3.61 | F25: 80604.08 | H25: ='6. Historical Wholesale'!H25 -> 23542 | I25: =I24 -> 0.95 | J25: 22364.9 | L25: ='6. Historical Wholesale'!L25 -> 6274 | M25: =M24 -> 2.34 | N25: 14681.16 | P25: 37046.06
B26: March | D26: ='6. Historical Wholesale'!D26 -> 31609 | E26: 3.61 | F26: 114108.49 | H26: ='6. Historical Wholesale'!H26 -> 37153 | I26: 0.95 | J26: 35295.35 | L26: ='6. Historical Wholesale'!L26 -> 19914 | M26: 2.34 | N26: 46598.76 | P26: 81894.11
B27: April | D27: ='6. Historical Wholesale'!D27 -> 19952 | E27: 3.61 | F27: 72026.72 | H27: ='6. Historical Wholesale'!H27 -> 22920 | I27: 0.95 | J27: 21774 | L27: ='6. Historical Wholesale'!L27 -> 6150 | M27: 2.34 | N27: 14391 | P27: 36165
B28: May | D28: ='6. Historical Wholesale'!D28 -> 22771 | E28: 3.61 | F28: 82203.31 | H28: ='6. Historical Wholesale'!H28 -> 23321 | I28: 0.95 | J28: 22154.95 | L28: ='6. Historical Wholesale'!L28 -> 6593 | M28: 2.34 | N28: 15427.62 | P28: 37582.57
B29: June | D29: ='6. Historical Wholesale'!D29 -> 25946 | E29: 3.61 | F29: 93665.06 | H29: ='6. Historical Wholesale'!H29 -> 27986 | I29: 0.95 | J29: 26586.7 | L29: ='6. Historical Wholesale'!L29 -> 6791 | M29: 2.34 | N29: 15890.94 | P29: 42477.64
B30: July | D30: ='6. Historical Wholesale'!D30 -> 26472 | E30: 3.61 | F30: 95563.92 | H30: ='6. Historical Wholesale'!H30 -> 28214 | I30: 0.95 | J30: 26803.3 | L30: ='6. Historical Wholesale'!L30 -> 7102 | M30: 2.34 | N30: 16618.68 | P30: 43421.98
B31: August | D31: ='6. Historical Wholesale'!D31 -> 27795 | E31: 3.61 | F31: 100339.95 | H31: ='6. Historical Wholesale'!H31 -> 28144 | I31: 0.95 | J31: 26736.8 | L31: ='6. Historical Wholesale'!L31 -> 7155 | M31: 2.34 | N31: 16742.7 | P31: 43479.5
B32: September | D32: ='6. Historical Wholesale'!D32 -> 27296 | E32: 3.61 | F32: 98538.56 | H32: ='6. Historical Wholesale'!H32 -> 29477 | I32: 0.95 | J32: 28003.15 | L32: ='6. Historical Wholesale'!L32 -> 7110 | M32: 2.34 | N32: 16637.4 | P32: 44640.55
B33: October | D33: ='6. Historical Wholesale'!D33 -> 20623 | E33: 3.61 | F33: 74449.03 | H33: ='6. Historical Wholesale'!H33 -> 23750 | I33: 0.95 | J33: 22562.5 | L33: ='6. Historical Wholesale'!L33 -> 6340 | M33: 2.34 | N33: 14835.6 | P33: 37398.1
B34: November | D34: ='6. Historical Wholesale'!D34 -> 23206.96023 | E34: 3.61 | F34: 83777.12642 | H34: ='6. Historical Wholesale'!H34 -> 42089.72727 | I34: 0.95 | J34: 39985.24091 | L34: ='6. Historical Wholesale'!L34 -> 24920.05634 | M34: 2.34 | N34: 58312.93183 | P34: 98298.17274
B35: December | D35: ='6. Historical Wholesale'!D35 -> 44711.03977 | E35: 3.61 | F35: 161406.8536 | H35: ='6. Historical Wholesale'!H35 -> 34959.27273 | I35: 0.95 | J35: 33211.30909 | L35: ='6. Historical Wholesale'!L35 -> 15428.94366 | M35: 2.34 | N35: 36103.72817 | P35: 69315.03726
B37: Total | D37: =SUM(D24:D35) -> 317487 | E37: =IF(D37<>0,F37/D37,0) -> 3.61 | F37: =SUM(F24:F35) -> 1146128.07 | H37: =SUM(H24:H35) -> 350705 | I37: =IF(H37<>0,J37/H37,0) -> 0.95 | J37: =SUM(J24:J35) -> 333169.75 | L37: =SUM(L24:L35) -> 117185 | M37: =IF(L37<>0,N37/L37,0) -> 2.34 | N37: =SUM(N24:N35) -> 274212.9 | P37: =SUM(P24:P35) -> 607382.65
B39: Hydro One | D39: Network | H39: Line Connection | L39: Transformation Connection | P39: Total Line
B41: Month | D41: Units Billed | E41: Rate | F41: Amount | H41: Units Billed | I41: Rate | J41: Amount | L41: Units Billed | M41: Rate | N41: Amount | P41: Amount
B43: January | D43: ='6. Historical Wholesale'!D43 -> 7835.12 | E43: ='5. UTRs and Sub-Transmission'!J36 -> 3.1942 | F43: =D43*E43 -> 25026.9403 | H43: ='6. Historical Wholesale'!H43 -> 7963.29 | I43: ='5. UTRs and Sub-Transmission'!J38 -> 0.771 | J43: =H43*I43 -> 6139.69659 | L43: ='6. Historical Wholesale'!L43 -> 7963.29 | M43: ='5. UTRs and Sub-Transmission'!J40 -> 1.7493 | N43: =L43*M43 -> 13930.1832 | P43: =J43+N43 -> 20069.87979
B44: February | D44: ='6. Historical Wholesale'!D44 -> 7388.31 | E44: =E43 -> 3.1942 | F44: 23599.7398 | H44: ='6. Historical Wholesale'!H44 -> 7881.44 | I44: =I43 -> 0.771 | J44: 6076.59024 | L44: ='6. Historical Wholesale'!L44 -> 7881.44 | M44: =M43 -> 1.7493 | N44: 13787.00299 | P44: 19863.59323
B45: March | D45: ='6. Historical Wholesale'!D45 -> 6732.89 | E45: 3.1942 | F45: 21506.19724 | H45: ='6. Historical Wholesale'!H45 -> 6966.38 | I45: 0.771 | J45: 5371.07898 | L45: ='6. Historical Wholesale'!L45 -> 6966.38 | M45: 1.7493 | N45: 12186.28853 | P45: 17557.36751
B46: April | D46: ='6. Historical Wholesale'!D46 -> 6372.73 | E46: 3.1942 | F46: 20355.77417 | H46: ='6. Historical Wholesale'!H46 -> 6760.43 | I46: 0.771 | J46: 5212.29153 | L46: ='6. Historical Wholesale'!L46 -> 6760.43 | M46: 1.7493 | N46: 11826.0202 | P46: 17038.31173
B47: May | D47: ='6. Historical Wholesale'!D47 -> 5615.91 | E47: 3.1942 | F47: 17938.33972 | H47: ='6. Historical Wholesale'!H47 -> 5904.82 | I47: 0.771 | J47: 4552.61622 | L47: ='6. Historical Wholesale'!L47 -> 5904.82 | M47: 1.7493 | N47: 10329.30163 | P47: 14881.91785
B48: June | D48: ='6. Historical Wholesale'!D48 -> 6106.31 | E48: 3.1942 | F48: 19504.7754 | H48: ='6. Historical Wholesale'!H48 -> 6246.18 | I48: 0.771 | J48: 4815.80478 | L48: ='6. Historical Wholesale'!L48 -> 6246.18 | M48: 1.7493 | N48: 10926.44267 | P48: 15742.24745
B49: July | D49: ='6. Historical Wholesale'!D49 -> 8728.67 | E49: 3.1942 | F49: 27881.11771 | H49: ='6. Historical Wholesale'!H49 -> 8769.29 | I49: 0.771 | J49: 6761.12259 | L49: ='6. Historical Wholesale'!L49 -> 8769.29 | M49: 1.7493 | N49: 15340.119 | P49: 22101.24159
B50: August | D50: ='6. Historical Wholesale'!D50 -> 9229.7 | E50: 3.1942 | F50: 29481.50774 | H50: ='6. Historical Wholesale'!H50 -> 9292.36 | I50: 0.771 | J50: 7164.40956 | L50: ='6. Historical Wholesale'!L50 -> 9292.36 | M50: 1.7493 | N50: 16255.12535 | P50: 23419.53491
B51: September | D51: ='6. Historical Wholesale'!D51 -> 9981.7 | E51: 3.1942 | F51: 31883.54614 | H51: ='6. Historical Wholesale'!H51 -> 9981.7 | I51: 0.771 | J51: 7695.8907 | L51: ='6. Historical Wholesale'!L51 -> 9981.7 | M51: 1.7493 | N51: 17460.98781 | P51: 25156.87851
B52: October | D52: ='6. Historical Wholesale'!D52 -> 9916.97 | E52: 3.1942 | F52: 31676.78557 | H52: ='6. Historical Wholesale'!H52 -> 10549.75 | I52: 0.771 | J52: 8133.85725 | L52: ='6. Historical Wholesale'!L52 -> 10549.75 | M52: 1.7493 | N52: 18454.67767 | P52: 26588.53492
B53: November | D53: ='6. Historical Wholesale'!D53 -> 5694.79 | E53: 3.1942 | F53: 18190.29822 | H53: ='6. Historical Wholesale'!H53 -> 6079.37 | I53: 0.771 | J53: 4687.19427 | L53: ='6. Historical Wholesale'!L53 -> 6079.37 | M53: 1.7493 | N53: 10634.64194 | P53: 15321.83621
B54: December | D54: ='6. Historical Wholesale'!D54 -> 6388.18 | E54: 3.1942 | F54: 20405.12456 | H54: ='6. Historical Wholesale'!H54 -> 6974 | I54: 0.771 | J54: 5376.954 | L54: ='6. Historical Wholesale'!L54 -> 6974 | M54: 1.7493 | N54: 12199.6182 | P54: 17576.5722
B56: Total | D56: =SUM(D43:D54) -> 89991.28 | E56: =IF(D56<>0,F56/D56,0) -> 3.1942 | F56: =SUM(F43:F54) -> 287450.1466 | H56: =SUM(H43:H54) -> 93369.01 | I56: =IF(H56<>0,J56/H56,0) -> 0.771 | J56: =SUM(J43:J54) -> 71987.50671 | L56: =SUM(L43:L54) -> 93369.01 | M56: =IF(L56<>0,N56/L56,0) -> 1.7493 | N56: =SUM(N43:N54) -> 163330.4092 | P56: =SUM(P43:P54) -> 235317.9159
B58: ='6. Historical Wholesale'!B58 -> Brantford Power Inc | D58: Network | H58: Line Connection | L58: Transformation Connection | P58: Total Line
B60: Month | D60: Units Billed | E60: Rate | F60: Amount | H60: Units Billed | I60: Rate | J60: Amount | L60: Units Billed | M60: Rate | N60: Amount | P60: Amount
B62: January | D62: ='6. Historical Wholesale'!D62 -> 11711.74872 | E62: ='5. UTRs and Sub-Transmission'!J51 -> 2.43 | F62: =D62*E62 -> 28459.54939 | H62: ='6. Historical Wholesale'!H62 -> 0 | I62: ='5. UTRs and Sub-Transmission'!J53 -> 0 | J62: =H62*I62 -> 0 | L62: ='6. Historical Wholesale'!L62 -> 11721.33 | M62: ='5. UTRs and Sub-Transmission'!J55 -> 1.79 | N62: =L62*M62 -> 20981.1807 | P62: =J62+N62 -> 20981.1807
B63: February | D63: ='6. Historical Wholesale'!D63 -> 10598.43 | E63: =E62 -> 2.43 | F63: 25754.1849 | H63: ='6. Historical Wholesale'!H63 -> 0 | I63: =I62 -> 0 | J63: 0 | L63: ='6. Historical Wholesale'!L63 -> 10598.43 | M63: =M62 -> 1.79 | N63: 18971.1897 | P63: 18971.1897
B64: March | D64: ='6. Historical Wholesale'!D64 -> 11962.2818 | E64: 2.43 | F64: 29068.34476 | H64: ='6. Historical Wholesale'!H64 -> 0 | I64: 0 | J64: 0 | L64: ='6. Historical Wholesale'!L64 -> 11962.29 | M64: 1.79 | N64: 21412.4991 | P64: 21412.4991
B65: April | D65: ='6. Historical Wholesale'!D65 -> 7712.43 | E65: 2.43 | F65: 18741.2049 | H65: ='6. Historical Wholesale'!H65 -> 0 | I65: 0 | J65: 0 | L65: ='6. Historical Wholesale'!L65 -> 7712.43 | M65: 1.79 | N65: 13805.2497 | P65: 13805.2497
B66: May | D66: ='6. Historical Wholesale'!D66 -> 6879.364102 | E66: 2.43 | F66: 16716.85477 | H66: ='6. Historical Wholesale'!H66 -> 0 | I66: 0 | J66: 0 | L66: ='6. Historical Wholesale'!L66 -> 6879.36 | M66: 1.79 | N66: 12314.0544 | P66: 12314.0544
B67: June | D67: ='6. Historical Wholesale'!D67 -> 7400.644053 | E67: 2.43 | F67: 17983.56505 | H67: ='6. Historical Wholesale'!H67 -> 0 | I67: 0 | J67: 0 | L67: ='6. Historical Wholesale'!L67 -> 7401.284 | M67: 1.79 | N67: 13248.29836 | P67: 13248.29836
B68: July | D68: ='6. Historical Wholesale'!D68 -> 7306.22 | E68: 2.43 | F68: 17754.1146 | H68: ='6. Historical Wholesale'!H68 -> 0 | I68: 0 | J68: 0 | L68: ='6. Historical Wholesale'!L68 -> 7306.22 | M68: 1.79 | N68: 13078.1338 | P68: 13078.1338
B69: August | D69: ='6. Historical Wholesale'!D69 -> 7122.584102 | E69: 2.43 | F69: 17307.87937 | H69: ='6. Historical Wholesale'!H69 -> 0 | I69: 0 | J69: 0 | L69: ='6. Historical Wholesale'!L69 -> 7122.58 | M69: 1.79 | N69: 12749.4182 | P69: 12749.4182
B70: September | D70: ='6. Historical Wholesale'!D70 -> 7048.456153 | E70: 2.43 | F70: 17127.74845 | H70: ='6. Historical Wholesale'!H70 -> 0 | I70: 0 | J70: 0 | L70: ='6. Historical Wholesale'!L70 -> 7048.45 | M70: 1.79 | N70: 12616.7255 | P70: 12616.7255
B71: October | D71: ='6. Historical Wholesale'!D71 -> 6092.39 | E71: 2.43 | F71: 14804.5077 | H71: ='6. Historical Wholesale'!H71 -> 0 | I71: 0 | J71: 0 | L71: ='6. Historical Wholesale'!L71 -> 6092.39 | M71: 1.79 | N71: 10905.3781 | P71: 10905.3781
B72: November | D72: ='6. Historical Wholesale'!D72 -> 11578.53 | E72: 2.43 | F72: 28135.8279 | H72: ='6. Historical Wholesale'!H72 -> 0 | I72: 0 | J72: 0 | L72: ='6. Historical Wholesale'!L72 -> 11578.53 | M72: 1.79 | N72: 20725.5687 | P72: 20725.5687
B73: December | D73: ='6. Historical Wholesale'!D73 -> 10350.8941 | E73: 2.43 | F73: 25152.67267 | H73: ='6. Historical Wholesale'!H73 -> 0 | I73: 0 | J73: 0 | L73: ='6. Historical Wholesale'!L73 -> 10350.89 | M73: 1.79 | N73: 18528.0931 | P73: 18528.0931
B75: Total | D75: =SUM(D62:D73) -> 105763.973 | E75: =IF(D75<>0,F75/D75,0) -> 2.43 | F75: =SUM(F62:F73) -> 257006.4545 | H75: =SUM(H62:H73) -> 0 | I75: =IF(H75<>0,J75/H75,0) -> 0 | J75: =SUM(J62:J73) -> 0 | L75: =SUM(L62:L73) -> 105774.184 | M75: =IF(L75<>0,N75/L75,0) -> 1.79 | N75: =SUM(N62:N73) -> 189335.7894 | P75: =SUM(P62:P73) -> 189335.7894
B77: ='6. Historical Wholesale'!B77 -> Add Extra Host Here (II) | D77: Network | H77: Line Connection | L77: Transformation Connection | P77: Total Line
B79: Month | D79: Units Billed | E79: Rate | F79: Amount | H79: Units Billed | I79: Rate | J79: Amount | L79: Units Billed | M79: Rate | N79: Amount | P79: Amount
B81: January | D81: ='6. Historical Wholesale'!D81 -> 0 | E81: ='5. UTRs and Sub-Transmission'!J66 -> 0 | F81: =D81*E81 -> 0 | H81: ='6. Historical Wholesale'!H81 -> 0 | I81: ='5. UTRs and Sub-Transmission'!J68 -> 0 | J81: =H81*I81 -> 0 | L81: ='6. Historical Wholesale'!L81 -> 0 | M81: ='5. UTRs and Sub-Transmission'!J70 -> 0 | N81: =L81*M81 -> 0 | P81: =J81+N81 -> 0
B82: February | D82: ='6. Historical Wholesale'!D82 -> 0 | E82: =E81 -> 0 | F82: 0 | H82: ='6. Historical Wholesale'!H82 -> 0 | I82: =I81 -> 0 | J82: 0 | L82: ='6. Historical Wholesale'!L82 -> 0 | M82: =M81 -> 0 | N82: 0 | P82: 0
B83: March | D83: ='6. Historical Wholesale'!D83 -> 0 | E83: 0 | F83: 0 | H83: ='6. Historical Wholesale'!H83 -> 0 | I83: 0 | J83: 0 | L83: ='6. Historical Wholesale'!L83 -> 0 | M83: 0 | N83: 0 | P83: 0
B84: April | D84: ='6. Historical Wholesale'!D84 -> 0 | E84: 0 | F84: 0 | H84: ='6. Historical Wholesale'!H84 -> 0 | I84: 0 | J84: 0 | L84: ='6. Historical Wholesale'!L84 -> 0 | M84: 0 | N84: 0 | P84: 0
B85: May | D85: ='6. Historical Wholesale'!D85 -> 0 | E85: 0 | F85: 0 | H85: ='6. Historical Wholesale'!H85 -> 0 | I85: 0 | J85: 0 | L85: ='6. Historical Wholesale'!L85 -> 0 | M85: 0 | N85: 0 | P85: 0
B86: June | D86: ='6. Historical Wholesale'!D86 -> 0 | E86: 0 | F86: 0 | H86: ='6. Historical Wholesale'!H86 -> 0 | I86: 0 | J86: 0 | L86: ='6. Historical Wholesale'!L86 -> 0 | M86: 0 | N86: 0 | P86: 0
B87: July | D87: ='6. Historical Wholesale'!D87 -> 0 | E87: 0 | F87: 0 | H87: ='6. Historical Wholesale'!H87 -> 0 | I87: 0 | J87: 0 | L87: ='6. Historical Wholesale'!L87 -> 0 | M87: 0 | N87: 0 | P87: 0
B88: August | D88: ='6. Historical Wholesale'!D88 -> 0 | E88: 0 | F88: 0 | H88: ='6. Historical Wholesale'!H88 -> 0 | I88: 0 | J88: 0 | L88: ='6. Historical Wholesale'!L88 -> 0 | M88: 0 | N88: 0 | P88: 0
B89: September | D89: ='6. Historical Wholesale'!D89 -> 0 | E89: 0 | F89: 0 | H89: ='6. Historical Wholesale'!H89 -> 0 | I89: 0 | J89: 0 | L89: ='6. Historical Wholesale'!L89 -> 0 | M89: 0 | N89: 0 | P89: 0
B90: October | D90: ='6. Historical Wholesale'!D90 -> 0 | E90: 0 | F90: 0 | H90: ='6. Historical Wholesale'!H90 -> 0 | I90: 0 | J90: 0 | L90: ='6. Historical Wholesale'!L90 -> 0 | M90: 0 | N90: 0 | P90: 0
B91: November | D91: ='6. Historical Wholesale'!D91 -> 0 | E91: 0 | F91: 0 | H91: ='6. Historical Wholesale'!H91 -> 0 | I91: 0 | J91: 0 | L91: ='6. Historical Wholesale'!L91 -> 0 | M91: 0 | N91: 0 | P91: 0
B92: December | D92: ='6. Historical Wholesale'!D92 -> 0 | E92: 0 | F92: 0 | H92: ='6. Historical Wholesale'!H92 -> 0 | I92: 0 | J92: 0 | L92: ='6. Historical Wholesale'!L92 -> 0 | M92: 0 | N92: 0 | P92: 0
B94: Total | D94: =SUM(D81:D92) -> 0 | E94: =IF(D94<>0,F94/D94,0) -> 0 | F94: =SUM(F81:F92) -> 0 | H94: =SUM(H81:H92) -> 0 | I94: =IF(H94<>0,J94/H94,0) -> 0 | J94: =SUM(J81:J92) -> 0 | L94: =SUM(L81:L92) -> 0 | M94: =IF(L94<>0,N94/L94,0) -> 0 | N94: =SUM(N81:N92) -> 0 | P94: =SUM(P81:P92) -> 0
B96: Total | D96: Network | H96: Line Connection | L96: Transformation Connection | P96: Total Line
B98: Month | D98: Units Billed | E98: Rate | F98: Amount | H98: Units Billed | I98: Rate | J98: Amount | L98: Units Billed | M98: Rate | N98: Amount | P98: Amount
B100: January | D100: =D24+D43+D62+D81 -> 44323.86872 | E100: =IF(D100<>0,F100/D100,0) -> 3.224706322 | F100: =F24+F43+F62+F81 -> 142931.4597 | H100: =H24+H43+H62+H81 -> 37112.29 | I100: =IF(H100<>0,J100/H100,0) -> 0.9115914591 | J100: =J24+J43+J62+J81 -> 33831.24659 | L100: =L24+L43+L62+L81 -> 23091.62 | M100: =IF(L100<>0,N100/L100,0) -> 1.857112836 | N100: =N24+N43+N62+N81 -> 42883.7439 | P100: =J100+N100 -> 76714.99049
B101: February | D101: =D25+D44+D63+D82 -> 40314.74 | E101: 3.223585336 | F101: 129958.0047 | H101: =H25+H44+H63+H82 -> 31423.44 | I101: 0.9051042865 | J101: =J25+J44+J63+J82 -> 28441.49024 | L101: =L25+L44+L63+L82 -> 24753.87 | M101: 1.916441861 | N101: =N25+N44+N63+N82 -> 47439.35269 | P101: 75880.84293
B102: March | D102: 50304.1718 | E102: 3.273745022 | F102: 164683.032 | H102: =H26+H45+H64+H83 -> 44119.38 | I102: 0.9217361844 | J102: =J26+J45+J64+J83 -> 40666.42898 | L102: =L26+L45+L64+L83 -> 38842.67 | M102: 2.064676492 | N102: =N26+N45+N64+N83 -> 80197.54763 | P102: 120863.9766
B103: April | D103: 34037.16 | E103: 3.264775882 | F103: 111123.6991 | H103: =H27+H46+H65+H84 -> 29680.43 | I103: 0.9092284556 | J103: =J27+J46+J65+J84 -> 26986.29153 | L103: =L27+L46+L65+L84 -> 20622.86 | M103: 1.940675052 | N103: =N27+N46+N65+N84 -> 40022.2699 | P103: 67008.56143
B104: May | D104: 35266.2741 | E104: 3.313605065 | F104: 116858.5045 | H104: =H28+H47+H66+H85 -> 29225.82 | I104: 0.9138346236 | J104: =J28+J47+J66+J85 -> 26707.56622 | L104: =L28+L47+L66+L85 -> 19377.18 | M104: 1.964732537 | N104: =N28+N47+N66+N85 -> 38070.97603 | P104: 64778.54225
B105: June | D105: 39452.95405 | E105: 3.324298613 | F105: 131153.4004 | H105: =H29+H48+H67+H86 -> 34232.18 | I105: 0.9173387374 | J105: =J29+J48+J67+J86 -> 31402.50478 | L105: =L29+L48+L67+L86 -> 20438.464 | M105: 1.960307831 | N105: =N29+N48+N67+N86 -> 40065.68103 | P105: 71468.18581
B106: July | D106: 42506.89 | E106: 3.321794474 | F106: 141199.1523 | H106: =H30+H49+H68+H87 -> 36983.29 | I106: 0.9075564286 | J106: =J30+J49+J68+J87 -> 33564.42259 | L106: =L30+L49+L68+L87 -> 23177.51 | M106: 1.943130768 | N106: =N30+N49+N68+N87 -> 45036.9328 | P106: 78601.35539
B107: August | D107: 44147.2841 | E107: 3.332692828 | F107: 147129.3371 | H107: =H31+H50+H69+H88 -> 37436.36 | I107: 0.905569066 | J107: =J31+J50+J69+J88 -> 33901.20956 | L107: =L31+L50+L69+L88 -> 23569.94 | M107: 1.940914722 | N107: =N31+N50+N69+N88 -> 45747.24355 | P107: 79648.45311
B108: September | D108: 44326.15615 | E108: 3.328731101 | F108: 147549.8546 | H108: =H32+H51+H70+H89 -> 39458.7 | I108: 0.9047191291 | J108: =J32+J51+J70+J89 -> 35699.0407 | L108: =L32+L51+L70+L89 -> 24140.15 | M108: 1.935162512 | N108: =N32+N51+N70+N89 -> 46715.11331 | P108: 82414.15401
B109: October | D109: 36632.36 | E109: 3.301188438 | F109: 120930.3233 | H109: =H33+H52+H71+H90 -> 34299.75 | I109: 0.8949440521 | J109: =J33+J52+J71+J90 -> 30696.35725 | L109: =L33+L52+L71+L90 -> 22982.14 | M109: 1.923043536 | N109: =N33+N52+N71+N90 -> 44195.65577 | P109: 74892.01302
B110: November | D110: 40480.28023 | E110: 3.213990906 | F110: 130103.2525 | H110: =H34+H53+H72+H91 -> 48169.09727 | I110: 0.9274086024 | J110: =J34+J53+J72+J91 -> 44672.43518 | L110: =L34+L53+L72+L91 -> 42577.95634 | M110: 2.106093157 | N110: =N34+N53+N72+N91 -> 89673.14247 | P110: 134345.5777
B111: December | D111: 61450.11387 | E111: 3.368010859 | F111: 206964.6508 | H111: =H35+H54+H73+H92 -> 41933.27273 | I111: 0.9202301795 | J111: =J35+J54+J73+J92 -> 38588.26309 | L111: =L35+L54+L73+L92 -> 32753.83366 | M111: 2.040415793 | N111: =N35+N54+N73+N92 -> 66831.43947 | P111: 105419.7026
B113: Total | D113: =SUM(D100:D111) -> 513242.253 | E113: =IF(D113<>0,F113/D113,0) -> 3.293931201 | F113: =SUM(F100:F111) -> 1690584.671 | H113: =SUM(H100:H111) -> 444074.01 | I113: =IF(H113<>0,J113/H113,0) -> 0.9123642627 | J113: =SUM(J100:J111) -> 405157.2567 | L113: =SUM(L100:L111) -> 316328.194 | M113: =IF(L113<>0,N113/L113,0) -> 1.981736407 | N113: =SUM(N100:N111) -> 626879.0986 | P113: =SUM(P100:P111) -> 1032036.355
N115: Low Voltage Switchgear Credit (if applicable) | P115: ='5. UTRs and Sub-Transmission'!J75 -> 0
N117: Total including deduction for Low Voltage Switchgear Credit | P117: =P113+P115 -> 1032036.355

Sheet 9. RTSR Rates to Forecast
A13: The purpose of this sheet is to re-align the current RTS Network Rates to recover current wholesale network costs.
A15: Rate Class | B15: Rate Description | C15: Unit | D15: Current RTSR-Network | E15: Loss Adjusted Billed kWh | F15: Billed kW | G15: Billed Amount | H15: Billed Amount % | I15: Current Wholesale Billing | J15: Adjusted RTSR Network
A17: Residential | B17: RTSR - Network | C17: kWh | D17: 0.006142556924 | E17: 93166525.23 | F17: 0 | G17: =ROUND(D17*E17, 2) -> 572280.68 | H17: =G17/1965881.93 -> 0.2911063331 | I17: =H17*total_current_wholesale_network -> 497068.9139 | J17: =IF(ISERROR(I17/E17), 0, I17/E17) -> 0.005335273723
A18: General Service Less Than 50 kW | B18: RTSR - Network | C18: kWh | D18: 0.005639068799 | E18: 53436793.24 | F18: 0 | G18: =ROUND(D18*E18, 2) -> 301333.75 | H18: 0.1532817131 | I18: 261731.0789 | J18: =IF(ISERROR(I18/E18), 0, I18/E18) -> 0.004897956315
A19: General Service 50 to 1,000 kW - Non Interval Meters | B19: RTSR - Network | C19: kW | D19: 2.246665443 | F19: 72426.91502 | G19: =ROUND(D19*F19, 2) -> 162719.05 | H19: 0.08277152738 | I19: 141333.762 | J19: =IF(ISERROR(I19/F19), 0, I19/F19) -> 1.951398344
A20: General Service 50 to 1,000 kW - Interval Meters | B20: RTSR - Network | C20: kW | D20: 2.38321132 | F20: 137743.9859 | G20: =ROUND(D20*F20, 2) -> 328273.03 | H20: 0.16698512 | I20: 285129.8745 | J20: =IF(ISERROR(I20/F20), 0, I20/F20) -> 2.06999872
A21: General Service 1,000 to 4,999 kW | B21: RTSR - Network | C21: kW | D21: 2.385930211 | F21: 116181.0895 | G21: =ROUND(D21*F21, 2) -> 277199.97 | H21: 0.1410054011 | I21: 240769.0716 | J21: =IF(ISERROR(I21/F21), 0, I21/F21) -> 2.072360249
A22: Street Lighting | B22: RTSR - Network | C22: kW | D22: 1.6945 | F22: 1482.651544 | G22: =ROUND(D22*F22, 2) -> 2512.35 | H22: 0.001277976038 | I22: 2182.165377 | J22: =IF(ISERROR(I22/F22), 0, I22/F22) -> 1.471799214
A23: Sentinel Lighting | B23: RTSR - Network | C23: kW | D23: 1.656067148 | F23: 342.92 | G23: =ROUND(D23*F23, 2) -> 567.9 | H23: 0.0002888779796 | I23: 493.263963 | J23: =IF(ISERROR(I23/F23), 0, I23/F23) -> 1.438422848
A24: Unmetered Scattered Load | B24: RTSR - Network | C24: kWh | D24: 0.0056 | E24: 275653.8276 | F24: 0 | G24: =ROUND(D24*E24, 2) -> 1543.66 | H24: 0.0007852251839 | I24: 1340.785084 | J24: =IF(ISERROR(I24/E24), 0, I24/E24) -> 0.004864017655
A25: Embedded Distributor | B25: RTSR - Network | C25: kW | D25: 2.38321132 | F25: 1074.96 | G25: =ROUND(D25*F25, 2) -> 2561.86 | H25: 0.001303160663 | I25: 2225.168544 | J25: =IF(ISERROR(I25/F25), 0, I25/F25) -> 2.070001251
A26: Embedded Distributor | B26: RTSR - Network | C26: kW | D26: 2.38321132 | F26: 29994.60525 | G26: =ROUND(D26*F26, 2) -> 71483.48 | H26: 0.03636204134 | I26: 62088.7914 | J26: =IF(ISERROR(I26/F26), 0, I26/F26) -> 2.069998618
A27: Embedded Distributor | B27: RTSR - Network | C27: kW | D27: 2.38321132 | F27: 102972.9067 | G27: =ROUND(D27*F27, 2) -> 245406.2 | H27: 0.1248326241 | I27: 213153.7855 | J27: =IF(ISERROR(I27/F27), 0, I27/F27) -> 2.069998724
A29: The purpose of this table is to re-align the current RTS Connection Rates to recover current wholesale connection costs.
A30: Rate Class | B30: Rate Description | C30: Unit | D30: Current RTSR-Connection | E30: Loss Adjusted Billed kWh | F30: Billed kW | G30: Billed Amount | H30: Billed Amount % | I30: Current Wholesale Billing | J30: Adjusted RTSR-Connection
A32: Residential | B32: RTSR - Connection | C32: kWh | D32: 0.003104301837 | E32: 93166525.23 | F32: 0 | G32: =ROUND(D32*E32, 2) -> 289217.02 | H32: =G32/998019.46 -> 0.2897909626 | I32: =H32*Total_Current_Wholesale_Lineplus -> 278544.7683 | J32: =IF(ISERROR(I32/E32), 0, I32/E32) -> 0.002989751604
A33: General Service Less Than 50 kW | B33: RTSR - Connection | C33: kWh | D33: 0.002703746779 | E33: 53436793.24 | F33: 0 | G33: =ROUND(D33*E33, 2) -> 144479.56 | H33: 0.1447662754 | I33: 139148.1925 | J33: =IF(ISERROR(I33/E33), 0, I33/E33) -> 0.002603977223
A34: General Service 50 to 1,000 kW - Non Interval Meters | B34: RTSR - Connection | C34: kW | D34: 1.123657158 | F34: 72426.91502 | G34: =ROUND(D34*F34, 2) -> 81383.02 | H34: 0.08154452219 | I34: 78379.94613 | J34: =IF(ISERROR(I34/F34), 0, I34/F34) -> 1.082193631
A35: General Service 50 to 1,000 kW - Interval Meters | B35: RTSR - Connection | C35: kW | D35: 1.241720736 | F35: 137743.9859 | G35: =ROUND(D35*F35, 2) -> 171039.56 | H35: 0.1713789829 | I35: 164728.1153 | J35: =IF(ISERROR(I35/F35), 0, I35/F35) -> 1.195900599
A36: General Service 1,000 to 4,999 kW | B36: RTSR - Connection | C36: kW | D36: 1.231806984 | F36: 116181.0895 | G36: =ROUND(D36*F36, 2) -> 143112.68 | H36: 0.1433966829 | I36: 137831.751 | J36: =IF(ISERROR(I36/F36), 0, I36/F36) -> 1.186352716
A37: Street Lighting | B37: RTSR - Connection | C37: kW | D37: 0.8685037519 | F37: 1482.651544 | G37: =ROUND(D37*F37, 2) -> 1287.69 | H37: 0.001290245383 | I37: 1240.173599 | J37: =IF(ISERROR(I37/F37), 0, I37/F37) -> 0.8364565525
A38: Sentinel Lighting | B38: RTSR - Connection | C38: kW | D38: 0.9078417384 | F38: 342.92 | G38: =ROUND(D38*F38, 2) -> 311.32 | H38: 0.0003119378053 | I38: 299.8321373 | J38: =IF(ISERROR(I38/F38), 0, I38/F38) -> 0.874350103
A39: Unmetered Scattered Load | B39: RTSR - Connection | C39: kWh | D39: 0.002703742323 | E39: 275653.8276 | F39: 0 | G39: =ROUND(D39*E39, 2) -> 745.3 | H39: 0.0007467790257 | I39: 717.7980597 | J39: =IF(ISERROR(I39/E39), 0, I39/E39) -> 0.002603983649
A40: Embedded Distributor | B40: RTSR - Connection | C40: kW | D40: 1.241720736 | F40: 1074.96 | G40: =ROUND(D40*F40, 2) -> 1334.8 | H40: 0.001337448871 | I40: 1285.545217 | J40: =IF(ISERROR(I40/F40), 0, I40/F40) -> 1.195900514
A41: Embedded Distributor | B41: RTSR - Connection | C41: kW | D41: 1.241720736 | F41: 29994.60525 | G41: =ROUND(D41*F41, 2) -> 37244.92 | H41: 0.03731883144 | I41: 35870.56395 | J41: =IF(ISERROR(I41/F41), 0, I41/F41) -> 1.195900518
A42: Embedded Distributor | B42: RTSR - Connection | C42: kW | D42: 1.241720736 | F42: 102972.9067 | G42: =ROUND(D42*F42, 2) -> 127863.59 | H42: 0.1281173315 | I42: 123145.36 | J42: =IF(ISERROR(I42/F42), 0, I42/F42) -> 1.195900592
A44: The purpose of this table is to update the re-aligned RTS Network Rates to recover future wholesale network costs.
A45: Rate Class | B45: Rate Description | C45: Unit | D45: Adjusted RTSR-Network | E45: Loss Adjusted Billed kWh | F45: Billed kW | G45: Billed Amount | H45: Billed Amount % | I45: Current Wholesale Billing | J45: Proposed RTSR-Network
A47: Residential | B47: RTSR - Network | C47: kWh | D47: 0.005335273723 | E47: 93166525.23 | F47: 0 | G47: =IF(ISERROR(D47*E47), 0, ROUND(D47*E47, 2)) -> 497068.91 | H47: =G47/1707516.66 -> 0.291106331 | I47: =H47*forecast_wholesale_network -> 492139.9008 | J47: =IF(ISERROR(I47/E47), 0, I47/E47) -> 0.005282368314
A48: General Service Less Than 50 kW | B48: RTSR - Network | C48: kWh | D48: 0.004897956315 | E48: 53436793.24 | F48: 0 | G48: =IF(ISERROR(D48*E48), 0, ROUND(D48*E48, 2)) -> 261731.08 | H48: 0.1532817138 | I48: 259135.7157 | J48: =IF(ISERROR(I48/E48), 0, I48/E48) -> 0.004849387472
A49: General Service 50 to 1,000 kW - Non Interval Meters | B49: RTSR - Network | C49: kW | D49: 1.951398344 | F49: 72426.91502 | G49: =ROUND(D49*F49, 2) -> 141333.76 | H49: 0.08277152622 | I49: 139932.2734 | J49: =IF(ISERROR(I49/F49), 0, I49/F49) -> 1.93204796
A50: General Service 50 to 1,000 kW - Interval Meters | B50: RTSR - Network | C50: kW | D50: 2.06999872 | F50: 137743.9859 | G50: =ROUND(D50*F50, 2) -> 285129.87 | H50: 0.1669851174 | I50: 282302.4798 | J50: =IF(ISERROR(I50/F50), 0, I50/F50) -> 2.049472273
A51: General Service 1,000 to 4,999 kW | B51: RTSR - Network | C51: kW | D51: 2.072360249 | F51: 116181.0895 | G51: =ROUND(D51*F51, 2) -> 240769.07 | H51: 0.1410054002 | I51: 238381.5681 | J51: =IF(ISERROR(I51/F51), 0, I51/F51) -> 2.051810404
A52: Street Lighting | B52: RTSR - Network | C52: kW | D52: 1.471799214 | F52: 1482.651544 | G52: =ROUND(D52*F52, 2) -> 2182.17 | H52: 0.001277978746 | I52: 2160.531278 | J52: =IF(ISERROR(I52/F52), 0, I52/F52) -> 1.457207721
A53: Sentinel Lighting | B53: RTSR - Network | C53: kW | D53: 1.438422848 | F53: 342.92 | G53: =ROUND(D53*F53, 2) -> 493.26 | H53: 0.0002888756588 | I53: 488.3687605 | J53: =IF(ISERROR(I53/F53), 0, I53/F53) -> 1.424147791
A54: Unmetered Scattered Load | B54: RTSR - Network | C54: kWh | D54: 0.004864017655 | E54: 275653.8276 | F54: 0 | G54: =IF(ISERROR(D54*E54), 0, ROUND(D54*E54, 2)) -> 1340.79 | H54: 0.0007852280633 | I54: 1327.494527 | J54: =IF(ISERROR(I54/E54), 0, I54/E54) -> 0.00481580299
A55: Embedded Distributor | B55: RTSR - Network | C55: kW | D55: 2.070001251 | F55: 1074.96 | G55: =ROUND(D55*F55, 2) -> 2225.17 | H55: 0.001303161516 | I55: 2203.104884 | J55: =IF(ISERROR(I55/F55), 0, I55/F55) -> 2.049476151
A56: Embedded Distributor | B56: RTSR - Network | C56: kW | D56: 2.069998618 | F56: 29994.60525 | G56: =ROUND(D56*F56, 2) -> 62088.79 | H56: 0.03636204053 | I56: 61473.10833 | J56: =IF(ISERROR(I56/F56), 0, I56/F56) -> 2.049472157
A57: Embedded Distributor | B57: RTSR - Network | C57: kW | D57: 2.069998724 | F57: 102972.9067 | G57: =ROUND(D57*F57, 2) -> 213153.79 | H57: 0.1248326268 | I57: 211040.1253 | J57: =IF(ISERROR(I57/F57), 0, I57/F57) -> 2.049472353
A59: The purpose of this table is to update the re-aligned RTS Connection Rates to recover future wholesale connection costs.
A60: Rate Class | B60: Rate Description | C60: Unit | D60: Adjusted RTSR-Connection | E60: Loss Adjusted Billed kWh | F60: Billed kW | G60: Billed Amount | H60: Billed Amount % | I60: Current Wholesale Billing | J60: Proposed RTSR-Connection
A62: Residential | B62: RTSR - Connection | C62: kWh | D62: 0.002989751604 | E62: 93166525.23 | F62: 0 | G62: =ROUND(D62*E62, 2) -> 278544.77 | H62: =G62/961192.05 -> 0.2897909632 | I62: =H62*forecast_wholesale_lineplus -> 299074.8095 | J62: =IF(ISERROR(I62/E62), 0, I62/E62) -> 0.003210110163
A63: General Service Less Than 50 kW | B63: RTSR - Connection | C63: kWh | D63: 0.002603977223 | E63: 53436793.24 | F63: 0 | G63: =ROUND(D63*E63, 2) -> 139148.19 | H63: 0.1447662723 | I63: 149404.056 | J63: =IF(ISERROR(I63/E63), 0, I63/E63) -> 0.002795902353
A64: General Service 50 to 1,000 kW - Non Interval Meters | B64: RTSR - Connection | C64: kW | D64: 1.082193631 | F64: 72426.91502 | G64: =ROUND(D64*F64, 2) -> 78379.95 | H64: 0.08154452588 | I64: 84156.91528 | J64: =IF(ISERROR(I64/F64), 0, I64/F64) -> 1.16195637
A65: General Service 50 to 1,000 kW - Interval Meters | B65: RTSR - Connection | C65: kW | D65: 1.195900599 | F65: 137743.9859 | G65: =ROUND(D65*F65, 2) -> 164728.12 | H65: 0.1713789872 | I65: 176869.3453 | J65: =IF(ISERROR(I65/F65), 0, I65/F65) -> 1.284044048
A66: General Service 1,000 to 4,999 kW | B66: RTSR - Connection | C66: kW | D66: 1.186352716 | F66: 116181.0895 | G66: =ROUND(D66*F66, 2) -> 137831.75 | H66: 0.1433966812 | I66: 147990.5883 | J66: =IF(ISERROR(I66/F66), 0, I66/F66) -> 1.273792395
A67: Street Lighting | B67: RTSR - Connection | C67: kW | D67: 0.8364565525 | F67: 1482.651544 | G67: =ROUND(D67*F67, 2) -> 1240.17 | H67: 0.001290241633 | I67: 1331.576272 | J67: =IF(ISERROR(I67/F67), 0, I67/F67) -> 0.8981046675
A68: Sentinel Lighting | B68: RTSR - Connection | C68: kW | D68: 0.874350103 | F68: 342.92 | G68: =ROUND(D68*F68, 2) -> 299.83 | H68: 0.0003119355804 | I68: 321.9288595 | J68: =IF(ISERROR(I68/F68), 0, I68/F68) -> 0.9387870625
A69: Unmetered Scattered Load | B69: RTSR - Connection | C69: kWh | D69: 0.002603983649 | E69: 275653.8276 | F69: 0 | G69: =ROUND(D69*E69, 2) -> 717.8 | H69: 0.0007467810413 | I69: 770.7051841 | J69: =IF(ISERROR(I69/E69), 0, I69/E69) -> 0.00279591686
A70: Embedded Distributor | B70: RTSR - Connection | C70: kW | D70: 1.195900514 | F70: 1074.96 | G70: =ROUND(D70*F70, 2) -> 1285.55 | H70: 0.001337453842 | I70: 1380.300988 | J70: =IF(ISERROR(I70/F70), 0, I70/F70) -> 1.284048698
A71: Embedded Distributor | B71: RTSR - Connection | C71: kW | D71: 1.195900518 | F71: 29994.60525 | G71: =ROUND(D71*F71, 2) -> 35870.56 | H71: 0.03731882718 | I71: 38514.38638 | J71: =IF(ISERROR(I71/F71), 0, I71/F71) -> 1.284043783
A72: Embedded Distributor | B72: RTSR - Connection | C72: kW | D72: 1.195900592 | F72: 102972.9067 | G72: =ROUND(D72*F72, 2) -> 123145.36 | H72: 0.128117331 | I72: 132221.7433 | J72: =IF(ISERROR(I72/F72), 0, I72/F72) -> 1.284044003

Sheet hidden1 (hidden)
A1: =IF('3. Rate Classes'!L17=1, '3. Rate Classes'!C17, "") -> Residential | B1: 1
A2: =IF('3. Rate Classes'!L18=1, '3. Rate Classes'!C18, "") -> General Service Less Than 50 kW | B2: 2
A3: =IF('3. Rate Classes'!L19=1, '3. Rate Classes'!C19, "") -> General Service 50 to 1,000 kW - Non Interval Meters | B3: 3
A4: =IF('3. Rate Classes'!L20=1, '3. Rate Classes'!C20, "") -> General Service 50 to 1,000 kW - Interval Meters | B4: 4
A5: =IF('3. Rate Classes'!L21=1, '3. Rate Classes'!C21, "") -> General Service 1,000 to 4,999 kW | B5: 5
A6: =IF('3. Rate Classes'!L22=1, '3. Rate Classes'!C22, "") -> Street Lighting | B6: 6
A7: =IF('3. Rate Classes'!L23=1, '3. Rate Classes'!C23, "") -> Sentinel Lighting | B7: 7
A8: =IF('3. Rate Classes'!L24=1, '3. Rate Classes'!C24, "") -> Unmetered Scattered Load | B8: 8
A9: =IF('3. Rate Classes'!L25=1, '3. Rate Classes'!C25, "") -> Embedded Distributor | B9: 9
A10: =IF('3. Rate Classes'!L26=1, '3. Rate Classes'!C26, "") -> Embedded Distributor | B10: 10
A11: =IF('3. Rate Classes'!L27=1, '3. Rate Classes'!C27, "") -> Embedded Distributor | B11: 11
A12: =IF('3. Rate Classes'!L28=1, '3. Rate Classes'!C28, "") ->  | B12: 12
A13: =IF('3. Rate Classes'!L29=1, '3. Rate Classes'!C29, "") ->  | B13: 13
A14: =IF('3. Rate Classes'!L30=1, '3. Rate Classes'!C30, "") ->  | B14: 14
A15: =IF('3. Rate Classes'!L31=1, '3. Rate Classes'!C31, "") ->  | B15: 15
A16: =IF('3. Rate Classes'!L32=1, '3. Rate Classes'!C32, "") ->  | B16: 16
A17: =IF('3. Rate Classes'!L33=1, '3. Rate Classes'!C33, "") ->  | B17: 17
A18: =IF('3. Rate Classes'!L34=1, '3. Rate Classes'!C34, "") ->  | B18: 18
A19: =IF('3. Rate Classes'!L35=1, '3. Rate Classes'!C35, "") ->  | B19: 19
A20: =IF('3. Rate Classes'!L36=1, '3. Rate Classes'!C36, "") ->  | B20: 20
A21: =IF('3. Rate Classes'!L37=1, '3. Rate Classes'!C37, "") ->  | B21: 21
A22: =IF('3. Rate Classes'!L38=1, '3. Rate Classes'!C38, "") ->  | B22: 22
